Workbook

Sheet 1. Information Sheet
A1: Back to Index | V1: a
B2: INCENTIVE REGULATION MODEL FOR 2018 FILERS
N12: Version | O12: 1
F14: Utility Name | G14: Alectra - PowerStream
F16: Service Territory
F18: Assigned EB Number
F20: Name of Contact and Title
F22: Phone Number
F24: Email Address
F26: We are applying for rates effective | G26: 2018-01-01
F28: Rate-Setting Method | G28: Price Cap IR
B30: Please indicate in which Rate Year the Group 1 accounts were last cleared1 | G30: 2016
B32: Please indicate the last Cost of Service Re-Basing Year | G32: 2017
C35: Notes
D37: Pale gray cells represent input cells.
D39: Pale blue cells represent drop-down lists.
D41: White cells contain fixed values, automatically generated values or formulae.
B44: Note: 1. Rate year of application

Sheet 3. Continuity Schedule
A1: Back to Index | B1: Back to Index | CK1: FALSE
C2: INCENTIVE REGULATION MODEL FOR 2018 FILERS | CK2: FALSE
CK3: FALSE
CK4: FALSE
CK5: FALSE
CK6: FALSE
CK7: FALSE
CK8: FALSE
CK9: FALSE
CK10: TRUE
CK11: TRUE
C12: Please complete the following continuity schedule for the following Deferral/Variance Accounts. Enter information into green cells only. Column CE shoudl match the latest 2.1.7 RRR filing. When inputting balances in the continuity schedule, Account 1580 RSVA - Wholesale Market Service Charge is to exclude any amounts relating to CBR. The CBR amounts are to be entered separately in the Class A and Class B 1580 sub-accounts. Only Class B amounts are to be disposed. Class A amounts are not to be disposed. If you have received approval to dispose of balances from prior years, the starting point for entries in the schedule below will be the balance sheet date as per your general ledger for which you received approval. For example, if in the 2016 EDR process (CoS or IRM) you received approval for the December 31, 2014 balances, the starting point for your entries below should be the 2013 year. This will allow for the correct starting point for the 2014 opening balance columns for both principal and interest. Please refer to the footnotes for further instructions.
E16: 2010 | O16: 2011 | Y16: 2012 | AI16: 2013 | AS16: 2014 | BC16: 2015 | BM16: 2016 | BW16: 2017 | CA16: Projected Interest on Dec-31-16 Balances | CE16: 2.1.7 RRR
C17: Account Descriptions | D17: Account Number | E17: Opening Principal Amounts as of Jan 1, 2010 | F17: Transactions2 Debit / (Credit) during 2010 | G17: OEB-Approved Disposition during 2010 | H17: Principal Adjustments1 during 2010 | I17: Closing Principal Balance as of Dec 31, 2010 | J17: Opening Interest Amounts as of Jan 1, 2010 | K17: Interest Jan 1 to Dec 31, 2010 | L17: OEB-Approved Disposition during 2010 | M17: Interest Adjustments1 during 2010 | N17: Closing Interest Amounts as of Dec 31, 2010 | O17: Opening Principal Amounts as of Jan 1, 2011 | P17: Transactions2 Debit / (Credit) during 2011 | Q17: OEB-Approved Disposition during 2011 | R17: Principal Adjustments1 during 2011 | S17: Closing Principal Balance as of Dec 31, 2011 | T17: Opening Interest Amounts as of Jan 1, 2011 | U17: Interest Jan 1 to Dec 31, 2011 | V17: OEB-Approved Disposition during 2011 | W17: Interest Adjustments1 during 2011 | X17: Closing Interest Amounts as of Dec 31, 2011 | Y17: Opening Principal Amounts as of Jan 1, 2012 | Z17: Transactions2 Debit / (Credit) during 2012 | AA17: OEB-Approved Disposition during 2012 | AB17: Principal Adjustments1 during 2012 | AC17: Closing Principal Balance as of Dec 31, 2012 | AD17: Opening Interest Amounts as of Jan 1, 2012 | AE17: Interest Jan 1 to Dec 31, 2012 | AF17: OEB-Approved Disposition during 2012 | AG17: Interest Adjustments1 during 2012 | AH17: Closing Interest Amounts as of Dec 31, 2012 | AI17: Opening Principal Amounts as of Jan 1, 2013 | AJ17: Transactions2 Debit / (Credit) during 2013 | AK17: OEB-Approved Disposition during 2013 | AL17: Principal Adjustments1 during 2013 | AM17: Closing Principal Balance as of Dec 31, 2013 | AN17: Opening Interest Amounts as of Jan 1, 2013 | AO17: Interest Jan 1 to Dec 31, 2013 | AP17: OEB-Approved Disposition during 2013 | AQ17: Interest Adjustments1 during 2013 | AR17: Closing Interest Amounts as of Dec 31, 2013 | AS17: Opening Principal Amounts as of Jan 1, 2014 | AT17: Transactions2 Debit / (Credit) during 2014 | AU17: OEB-Approved Disposition during 2014 | AV17: Principal Adjustments1 during 2014 | AW17: Closing Principal Balance as of Dec 31, 2014 | AX17: Opening Interest Amounts as of Jan 1, 2014 | AY17: Interest Jan 1 to Dec 31. 2014 | AZ17: OEB-Approved Disposition during 2014 | BA17: Interest Adjustments1 during 2014 | BB17: Closing Interest Amounts as of Dec 31, 2014 | BC17: Opening Principal Amounts as of Jan 1, 2015 | BD17: Transactions2 Debit / (Credit) during 2015 | BE17: OEB-Approved Disposition during 2015 | BF17: Principal Adjustments1 during 2015 | BG17: Closing Principal Balance as of Dec 31, 15 | BH17: Opening Interest Amounts as of Jan 1, 15 | BI17: Interest Jan 1 to Dec 31, 15 | BJ17: OEB-Approved Disposition during 2015 | BK17: Interest Adjustments1 during 2015 | BL17: Closing Interest Amounts as of Dec 31, 15 | BM17: Opening Principal Amounts as of Jan 1, 2016 | BN17: Transactions2 Debit / (Credit) during 2016 | BO17: OEB-Approved Disposition during 2016 | BP17: Principal Adjustments1 during 2016 | BQ17: Closing Principal Balance as of Dec 31, 16 | BR17: Opening Interest Amounts as of Jan 1, 16 | BS17: Interest Jan 1 to Dec 31, 16 | BT17: OEB-Approved Disposition during 2016 | BU17: Interest Adjustments1 during 2016 | BV17: Closing Interest Amounts as of Dec 31, 16 | BW17: Principal Disposition during 2017 - instructed by OEB | BX17: Interest Disposition during 2017 - instructed by OEB | BY17: Closing Principal Balances as of Dec 31, 2017 Adjusted for Dispositions during 2017 | BZ17: Closing Interest Balances as of Dec 31, 16 Adjusted for Disposition in 2017 | CA17: Projected Interest from Jan 1, 2016 to December 31, 2016 on Dec 31 -16 balance adjusted for disposition during 2017 3 | CB17: Projected Interest from January 1, 2018 to April 30, 2018 on Dec 31 -16 balance adjusted for disposition during 2017 3 | CC17: Total Interest | CD17: Total Claim | CE17: As of Dec 31-16 | CF17: Variance RRR vs. 2016 Balance (Principal + Interest)
CD19: Claim before Forecasted Transactions
C20: Group 1 Accounts
C21: LV Variance Account | D21: 1550 | I21: =E21+F21-G21+H21 -> 0 | N21: =J21+K21-L21+M21 -> 0 | O21: =I21 -> 0 | P21: 115767.8 | S21: =O21+P21-Q21+SUM(R21:R21) -> 115767.8 | T21: =N21 -> 0 | U21: 1571.36 | X21: =T21+U21-V21+W21 -> 1571.36 | Y21: =S21 -> 115767.8 | Z21: ='[3]1550'!$D$26+'[3]1550'!$E$26 -> 16682.93 | AC21: =Y21+Z21-AA21+SUM(AB21:AB21) -> 132450.73 | AD21: =X21 -> 1571.36 | AE21: ='[3]1550'!$I$26 -> 1800.8 | AH21: =AD21+AE21-AF21+AG21 -> 3372.16 | AI21: =AC21 -> 132450.73 | AJ21: =SUM('[4]1550'!$D$30:E$30) -> 288057.23 | AK21: =-'[4]1550'!$F$30 -> 117339.16 | AM21: =AI21+AJ21-AK21+SUM(AL21:AL21) -> 303168.8 | AN21: =AH21 -> 3372.16 | AO21: ='[4]1550'!$I$30 -> 2247.76 | AP21: =-'[4]1550'!$J$30 -> 1702 | AR21: =AN21+AO21-AP21+AQ21 -> 3917.92 | AS21: =AM21 -> 303168.8 | AT21: =SUM('[5]1550'!$D$30:$E$30) -> 287709.57 | AU21: =-'[5]1550'!$F$30 -> 15111.23 | AW21: =AS21+AT21-AU21+SUM(AV21:AV21) -> 575767.14 | AX21: =AR21 -> 3917.92 | AY21: ='[5]1550'!$I$30 -> 6269.86 | AZ21: =-'[5]1550'!$J$30 -> 1892.3 | BB21: =AX21+AY21-AZ21+BA21 -> 8295.48 | BC21: =AW21 -> 575767.14 | BD21: ='[6]1550'!$D$30+'[6]1550'!$E$30 -> 471028.05 | BE21: =-'[6]1550'!$F$30 -> 288057.57 | BG21: =BC21+BD21-BE21+SUM(BF21:BF21) -> 758737.62 | BH21: =BB21 -> 8295.48 | BI21: ='[6]1550'!$I$30 -> 5408.92 | BJ21: =-SUM('[6]1550'!$J$30:$K$30) -> 6482.2 | BL21: =BH21+BI21-BJ21+BK21 -> 7222.2 | BM21: =BG21 -> 758737.62 | BN21: ='[7]1550'!$D$18+'[7]1550'!$E$18 -> 552752.01 | BO21: =-'[7]1550'!$F$18 -> 287709.57 | BQ21: =BM21+BN21-BO21+SUM(BP21:BP21) -> 1023780.06 | BR21: =BL21 -> 7222.2 | BS21: ='[7]1550'!$I$18 -> 8152.771092 | BT21: =-('[7]1550'!$J$18+'[7]1550'!$K$18) -> 5244.22 | BV21: =BR21+BS21-BT21+BU21 -> 10130.75109 | BW21: =-'[7]1550'!$F$23 -> 471028.05 | BX21: =-SUM('[7]1550'!$J$23:$K$23) -> 7159.29 | BY21: =BQ21-BW21 -> 552752.01 | BZ21: =BV21-BX21 -> 2971.461092 | CA21: =BY21*0.011 -> 6080.27211 | CC21: =BZ21+CA21+CB21 -> 9051.733202 | CD21: =SUM(BY21:CB21) -> 561803.7432 | CE21: ='[8]Dec 2016YTD-MIFRS'!$N$6 -> 1033910.811 | CF21: =CE21-SUM(BQ21,BV21) -> 0
C22: Smart Metering Entity Charge Variance Account | D22: 1551 | I22: =E22+F22-G22+H22 -> 0 | N22: =J22+K22-L22+M22 -> 0 | O22: =I22 -> 0 | P22: 0 | S22: 0 | T22: 0 | U22: 0 | X22: =T22+U22-V22+W22 -> 0 | Y22: 0 | AC22: =Y22+Z22-AA22+SUM(AB22:AB22) -> 0 | AD22: =X22 -> 0 | AH22: =AD22+AE22-AF22+AG22 -> 0 | AI22: 0 | AJ22: =SUM('[4]1551 Residential'!$D$30:E$30)+SUM('[4]1551 GS<50'!$D$30:E$30) -> -17910.51 | AM22: -17910.51 | AN22: 0 | AO22: ='[4]1551 Residential'!$I$30+'[4]1551 GS<50'!$I$30 -> -71.11 | AR22: =AN22+AO22-AP22+AQ22 -> -71.11 | AS22: -17910.51 | AT22: =SUM('[5]1551 Residential'!$D$30:$E$30)+SUM('[5]1551 GS<50'!$D$30:$E$30) -> -18781.05 | AU22: =-'[5]1551 Residential'!$F$30-'[5]1551 GS<50'!$F$30 -> 0 | AW22: -36691.56 | AX22: -71.11 | AY22: ='[5]1551 Residential'!$I$30+'[5]1551 GS<50'!$I$30 -> -365.06 | AZ22: =-'[5]1551 Residential'!$J$30-'[5]1551 GS<50'!$J$30 -> 0 | BB22: =AX22+AY22-AZ22+BA22 -> -436.17 | BC22: -36691.56 | BD22: =SUM('[6]1551 Residential'!$D$30:$E$30)+SUM('[6]1551 GS<50'!$D$30:$E$30) -> -22681.35 | BE22: =-('[6]1551 Residential'!$F$30+'[6]1551 GS<50'!$F$30) -> -17910.51 | BG22: -41462.4 | BH22: -436.17 | BI22: ='[6]1551 Residential'!$I$30+'[6]1551 GS<50'!$I$30 -> -330.72 | BJ22: =-(SUM('[6]1551 Residential'!$J$30:$K$30)+SUM('[6]1551 GS<50'!$J$30:$K$30)) -> -334.394497 | BL22: =BH22+BI22-BJ22+BK22 -> -432.495503 | BM22: =BG22 -> -41462.4 | BN22: =SUM('[7]1551 Residential'!$D$15:$E$15)+SUM('[7]1551 GS<50'!$D$15:$E$15) -> -23673.09 | BO22: =-('[7]1551 Residential'!$F$15+'[7]1551 GS<50'!$F$15) -> -18781.05 | BQ22: =BM22+BN22-BO22+SUM(BP22:BP22) -> -46354.44 | BR22: -432.495503 | BS22: ='[7]1551 Residential'!$I$15+'[7]1551 GS<50'!$I$15 -> -366.1335333 | BT22: =-(SUM('[7]1551 Residential'!$J$15:$K$15)+SUM('[7]1551 GS<50'!$J$15:$K$15)) -> -325.7431162 | BV22: =BR22+BS22-BT22+BU22 -> -472.8859201 | BW22: =-('[7]1551 Residential'!$F$20+'[7]1551 GS<50'!$F$20) -> -22681.35 | BX22: =-(SUM('[7]1551 Residential'!$J$20:$K$20)+SUM('[7]1551 GS<50'!$J$20:$K$20)) -> -356.2508287 | BY22: =BQ22-BW22 -> -23673.09 | BZ22: =BV22-BX22 -> -116.6350913 | CA22: =BY22*0.011 -> -260.40399 | CC22: =BZ22+CA22+CB22 -> -377.0390813 | CD22: =SUM(BY22:CB22) -> -24050.12908 | CE22: ='[8]Dec 2016YTD-MIFRS'!$N$7 -> -46827.32592 | CF22: =CE22-SUM(BQ22,BV22) -> 4.14729584e-10
C23: RSVA - Wholesale Market Service Charge | D23: 1580 | I23: =E23+F23-G23+H23 -> 0 | N23: =J23+K23-L23+M23 -> 0 | O23: =I23 -> 0 | P23: -5518757.61 | S23: =O23+P23-Q23+SUM(R23:R23) -> -5518757.61 | T23: 0 | U23: -58243.99 | X23: =T23+U23-V23+W23 -> -58243.99 | Y23: -5518757.61 | Z23: ='[3]1580'!$D$28+'[3]1580'!$E$28 -> -6544300.15 | AC23: =Y23+Z23-AA23+SUM(AB23:AB23) -> -12063057.76 | AD23: =X23 -> -58243.99 | AE23: ='[3]1580'!$I$28 -> -125746.44 | AH23: =AD23+AE23-AF23+AG23 -> -183990.43 | AI23: -12063057.76 | AJ23: =SUM('[4]1580'!$D$32:E$32) -> -3416930.31 | AK23: =-'[4]1580'!$F$32 -> -5577001.6 | AL23: 16968 | AM23: -9886018.47 | AN23: -183990.43 | AO23: ='[4]1580'!$I$32 -> -134976.81 | AP23: =-'[4]1580'!$J$32 -> -81126 | AR23: =AN23+AO23-AP23+AQ23 -> -237841.24 | AS23: -9886018.47 | AT23: =SUM('[5]1580'!$D$32:$E$32) -> -750596.13 | AU23: =-'[5]1580'!$F$32 -> -6486055.74 | AV23: ='[5]1580'!$G$20+'[5]1580'!$G$21+'[5]1580'!$G$31 -> -428586 | AW23: -4579144.86 | AX23: -237841.24 | AY23: ='[5]1580'!$I$32 -> -28008.97 | AZ23: =-'[5]1580'!$J$32 -> -198209.45 | BB23: =AX23+AY23-AZ23+BA23 -> -67640.76 | BC23: -4579144.86 | BD23: =SUM('[6]1580 (WMS)'!$D$32:$E$32) -> -10407994.03 | BE23: =-'[6]1580 (WMS)'!$F$32 -> -3399962.73 | BG23: -11587176.16 | BH23: -67640.76 | BI23: ='[6]1580 (WMS)'!$I$32 -> -49704.58 | BJ23: =-SUM('[6]1580 (WMS)'!$J$32:$K$32) -> -184956.2615 | BL23: =BH23+BI23-BJ23+BK23 -> 67610.92151 | BM23: -11587176.16 | BN23: ='[7]1580 (WMS)'!$D$20+'[7]1580 (WMS)'!$E$20+'[7]1580 (WMS)'!$G$20 -> -4482608.54 | BO23: =-'[7]1580 (WMS)'!$F$20 -> -1179182.13 | BQ23: =BM23+BN23-BO23+SUM(BP23:BP23) -> -14890602.57 | BR23: 67610.92151 | BS23: ='[7]1580 (WMS)'!$I$20 -> -138990.0915 | BT23: =-SUM('[7]1580 (WMS)'!$J$20:$K$20) -> 104324.3215 | BV23: =BR23+BS23-BT23+BU23 -> -175703.4915 | BW23: =-'[7]1580 (WMS)'!$F$25 -> -10407994.03 | BX23: =-SUM('[7]1580 (WMS)'!$J$25:$K$25) -> -150131.0085 | BY23: -4482608.54 | BZ23: -25572.48305 | CA23: -49308.69394 | CC23: =BZ23+CA23+CB23 -> -74881.17699 | CD23: =SUM(BY23:CB23) -> -4557489.717 | CE23: ='[8]Dec 2016YTD-MIFRS'!$N$8 -> -15066306.05 | CF23: =CE23-SUM(BQ23,BV23) -> 0.009999984875
C24: Variance WMS – Sub-account CBR Class A | D24: 1580 | I24: 0 | N24: 0 | O24: 0 | P24: 0 | S24: 0 | T24: 0 | U24: 0 | X24: 0 | Y24: 0 | AC24: 0 | AD24: 0 | AH24: 0 | AI24: 0 | AM24: 0 | AN24: 0 | AR24: 0 | AS24: 0 | AW24: 0 | AX24: 0 | BB24: 0 | BC24: 0 | BD24: ='[6]1580 (Class A)'!$D$32 -> 124743.52 | BG24: =BC24+BD24-BE24+SUM(BF24:BF24) -> 124743.52 | BH24: 0 | BI24: ='[6]1580 (Class A)'!$I$32 -> 374.97 | BL24: 374.97 | BM24: 124743.52 | BN24: =SUM('[7]1580 (Class A)'!$D$20:$G$20) -> -124743.54 | BQ24: =BM24+BN24-BO24+SUM(BP24:BP24) -> -0.02000000003 | BR24: 374.97 | BS24: ='[7]1580 (Class A)'!$I$20+'[7]1580 (Class A)'!$K$20 -> -374.97 | BV24: -5.684341886e-14 | BY24: -0.02000000003 | BZ24: -5.684341886e-14 | CA24: -0.0002200000004 | CC24: =BZ24+CA24+CB24 -> -0.0002200000004 | CD24: -0.02022000003 | CE24: 0 | CF24: =CE24-SUM(BQ24,BV24) -> 0.02000000003
C25: Variance WMS – Sub-account CBR Class B | D25: 1580 | I25: 0 | N25: 0 | O25: 0 | P25: 0 | S25: 0 | T25: 0 | U25: 0 | X25: 0 | Y25: 0 | AC25: 0 | AD25: 0 | AH25: 0 | AI25: 0 | AM25: 0 | AN25: 0 | AR25: 0 | AS25: 0 | AW25: 0 | AX25: 0 | BB25: 0 | BC25: 0 | BD25: ='[6]1580 (Class B)'!$D$32 -> 1108630.1 | BG25: 1108630.1 | BH25: 0 | BI25: ='[6]1580 (Class B)'!$I$32 -> 3562.99 | BL25: 3562.99 | BM25: 1108630.1 | BN25: =SUM('[7]1580 (Class B)'!$D$20:$E$20) -> -185940.41 | BQ25: =BM25+BN25-BO25+SUM(BP25:BP25) -> 922689.69 | BR25: 3562.99 | BS25: ='[7]1580 (Class B)'!$I$20 -> 11337.26424 | BV25: 14900.25424 | BW25: =-'[7]1580 (Class B)'!$F$25 -> 1108630.1 | BX25: =-SUM('[7]1580 (Class B)'!$J$25:$K$25) -> 15757.92 | BY25: -185940.41 | BZ25: -857.6657558 | CA25: -2045.34451 | CC25: =BZ25+CA25+CB25 -> -2903.010266 | CD25: -188843.4203 | CE25: ='[8]Dec 2016YTD-MIFRS'!$N$9 -> 937589.9442 | CF25: =CE25-SUM(BQ25,BV25) -> 0
C26: RSVA - Retail Transmission Network Charge | D26: 1584 | I26: 0 | N26: 0 | O26: =I26 -> 0 | P26: 631982.59 | S26: 631982.59 | T26: 0 | U26: 26118.28 | X26: =T26+U26-V26+W26 -> 26118.28 | Y26: 631982.59 | Z26: ='[3]1584'!$D$28+'[3]1584'!$E$28 -> 177337.63 | AC26: =Y26+Z26-AA26+SUM(AB26:AB26) -> 809320.22 | AD26: 26118.28 | AE26: ='[3]1584'!$I$28 -> 12236.08 | AH26: =AD26+AE26-AF26+AG26 -> 38354.36 | AI26: 809320.22 | AJ26: =SUM('[4]1584'!$D$32:E$32) -> 3378169.16 | AK26: =-'[4]1584'!$F$32 -> 658101 | AM26: 3529388.38 | AN26: 38354.36 | AO26: ='[4]1584'!$I$32 -> 24797.88 | AP26: =-'[4]1584'!$J$32 -> 9290 | AR26: =AN26+AO26-AP26+AQ26 -> 53862.24 | AS26: 3529388.38 | AT26: =SUM('[5]1584'!$D$32:$E$32) -> 3491680.45 | AU26: =-'[5]1584'!$F$32 -> 151219.22 | AW26: 6869849.61 | AX26: 53862.24 | AY26: ='[5]1584'!$I$32 -> 73256.38 | AZ26: =-'[5]1584'!$J$32 -> 31287.01 | BB26: =AX26+AY26-AZ26+BA26 -> 95831.61 | BC26: 6869849.61 | BD26: =SUM('[6]1584'!$D$32:$E$32) -> -1237207.29 | BE26: =-'[6]1584'!$F$32 -> 3378169.21 | BG26: 2254473.11 | BH26: 95831.61 | BI26: ='[6]1584'!$I$32 -> 40112.4 | BJ26: =-SUM('[6]1584'!$J$32:$K$32) -> 74457.24 | BL26: =BH26+BI26-BJ26+BK26 -> 61486.77 | BM26: 2254473.11 | BN26: =SUM('[7]1584'!$D$20:$E$20) -> -532829.4 | BO26: =-'[7]1584'!$F$20 -> 3491680.45 | BQ26: =BM26+BN26-BO26+SUM(BP26:BP26) -> -1770036.74 | BR26: 61486.77 | BS26: ='[7]1584'!$I$20 -> -12513.33 | BT26: =-SUM('[7]1584'!$J$20:$K$20) -> 63012.66 | BV26: =BR26+BS26-BT26+BU26 -> -14039.22 | BW26: =-'[7]1584'!$F$25 -> -1237207.29 | BX26: =-SUM('[7]1584'!$J$25:$K$25) -> -15135.17 | BY26: -532829.45 | BZ26: 1095.95 | CA26: -5861.12395 | CC26: =BZ26+CA26+CB26 -> -4765.17395 | CD26: -537594.624 | CE26: ='[8]Dec 2016YTD-MIFRS'!$N$10 -> -1784075.91 | CF26: =CE26-SUM(BQ26,BV26) -> 0.04999999772
C27: RSVA - Retail Transmission Connection Charge | D27: 1586 | I27: 0 | N27: 0 | O27: 0 | P27: -170342.67 | S27: -170342.67 | T27: 0 | U27: 699.95 | X27: 699.95 | Y27: -170342.67 | Z27: ='[3]1586'!$D$28+'[3]1586'!$E$28 -> -76744.959 | AC27: -247087.629 | AD27: 699.95 | AE27: ='[3]1586'!$I$28 -> -2601.08 | AH27: -1901.13 | AI27: -247087.629 | AJ27: =SUM('[4]1586'!$D$32:E$32) -> 1314693.93 | AK27: =-'[4]1586'!$F$32 -> -169642.72 | AM27: 1237249.021 | AN27: -1901.13 | AO27: ='[4]1586'!$I$32 -> 5832.14 | AP27: =-'[4]1586'!$J$32 -> -2504 | AR27: 6435.01 | AS27: 1237249.021 | AT27: =SUM('[5]1586'!$D$32:$E$32) -> 2601535.59 | AU27: =-'[5]1586'!$F$32 -> -77444.91 | AW27: 3916229.521 | AX27: 6435.01 | AY27: ='[5]1586'!$I$32 -> 35834.12 | AZ27: =-'[5]1586'!$J$32 -> -536.01 | BB27: 42805.14 | BC27: 3916229.521 | BD27: =SUM('[6]1586'!$D$32:$E$32) -> -230302.05 | BE27: =-'[6]1586'!$F$32 -> 1314693.93 | BG27: 2371233.541 | BH27: 42805.14 | BI27: ='[6]1586'!$I$32 -> 32228.91 | BJ27: =-SUM('[6]1586'!$J$32:$K$32) -> 25158.58 | BL27: 49875.47 | BM27: 2371233.541 | BN27: =SUM('[7]1586'!$D$20:$E$20) -> 941983.47 | BO27: =-'[7]1586'!$F$20 -> 2601535.59 | BQ27: 711681.421 | BR27: 49875.47 | BS27: ='[7]1586'!$I$20 -> 4911.14 | BT27: =-SUM('[7]1586'!$J$20:$K$20) -> 48669.87 | BV27: 6116.74 | BW27: =-'[7]1586'!$F$25 -> -230302.05 | BX27: =-SUM('[7]1586'!$J$25:$K$25) -> -1327.72 | BY27: 941983.471 | BZ27: 7444.46 | CA27: 10361.81818 | CC27: 17806.27818 | CD27: =SUM(BY27:CB27) -> 959789.7492 | CE27: ='[8]Dec 2016YTD-MIFRS'!$N$11 -> 717798.16 | CF27: -0.0009999887552
C28: RSVA - Power | D28: 1588 | I28: 0 | N28: 0 | O28: 0 | P28: -1031401.67 | S28: -1031401.67 | T28: 0 | U28: -19574.56 | X28: -19574.56 | Y28: -1031401.67 | Z28: ='[3]1588'!$D$29+'[3]1588'!$E$29 -> -541508.42 | AC28: -1572910.09 | AD28: -19574.56 | AE28: ='[3]1588'!$I$29 -> -3471.59 | AH28: -23046.15 | AI28: -1572910.09 | AJ28: =SUM('[4]1588'!$D$33:E$33) -> 924467.16 | AK28: =-'[4]1588'!$F$33 -> -1050976.23 | AL28: ='[9]Summary Impact 2012_13'!$B$8+'[9]Summary Impact 2012_13'!$D$8 -> -4668526.987 | AM28: -4265993.687 | AN28: -23046.15 | AO28: ='[4]1588'!$I$33 -> 11467.69 | AP28: =-'[4]1588'!$J$33 -> -15162 | AQ28: ='[9]Summary Impact 2012_13'!$F$8 -> -60232.10175 | AR28: -56648.56175 | AS28: -4265993.687 | AT28: =SUM('[5]1588'!$D$33:$E$33) -> -552173.06 | AU28: =-'[5]1588'!$F$33 -> -521933.17 | AV28: ='[5]1588'!$G$21+'[5]1588'!$G$28+'[5]1588'!$G$29+'[5]1588'!$G$30+'[5]1588'!$G$31+'[5]1588'!$G$32 -> -2337699.494 | AW28: -6633933.071 | AX28: -56648.56175 | AY28: ='[5]1588'!$I$33 -> -82951.48 | AZ28: =-'[5]1588'!$J$33 -> -15556.57 | BB28: -124043.4717 | BC28: -6633933.071 | BD28: =SUM('[6]1588'!$D$33:$E$33)+'[6]1588'!$G$33 -> -859776.22 | BE28: =-'[6]1588'!$F$33 -> -3744060.523 | BG28: -3749648.768 | BH28: -124043.4717 | BI28: ='[6]1588'!$I$33 -> -29325.46 | BJ28: =-SUM('[6]1588'!$J$33:$K$33) -> -103602.6717 | BL28: -49766.26 | BM28: -3749648.768 | BN28: =SUM('[7]1588'!$D$20:$E$20)+'[7]1588'!$G$20 -> -148172.51 | BO28: =-'[7]1588'!$F$20 -> -2889872.554 | BP28: 819534 | BQ28: -188414.7236 | BR28: -49766.26 | BS28: ='[7]1588'!$I$20 -> 5680.24 | BT28: =-SUM('[7]1588'!$J$20:$K$20) -> -54902.53 | BV28: 10816.51 | BW28: =-'[7]1588'!$F$25 -> -859776.22 | BX28: =-SUM('[7]1588'!$J$25:$K$25) -> -4321.27 | BY28: 671361.4964 | BZ28: 15137.78 | CA28: 7384.97646 | CC28: 22522.75646 | CD28: 693884.2528 | CE28: ='[8]Dec 2016YTD-MIFRS'!$N$12 -> -997132.22 | CF28: -819534.0064
C29: RSVA - Global Adjustment | D29: 1589 | I29: 0 | N29: 0 | O29: 0 | P29: 1058062.99 | S29: 1058062.99 | T29: 0 | U29: 69597.94 | X29: 69597.94 | Y29: 1058062.99 | Z29: ='[3]1589'!$D$29+'[3]1589'!$E$29 -> -3235246.12 | AC29: -2177183.13 | AD29: 69597.94 | AE29: ='[3]1589'!$I$29 -> 495.22 | AH29: 70093.16 | AI29: -2177183.13 | AJ29: =SUM('[4]1589'!$D$33:E$33) -> -1669046.04 | AK29: =-'[4]1589'!$F$33 -> 1127660.93 | AL29: ='[9]Summary Impact 2012_13'!$C$8+'[9]Summary Impact 2012_13'!$E$8 -> 4668526.987 | AM29: -305363.1131 | AN29: 70093.16 | AO29: ='[4]1589'!$I$33 -> -16958.78 | AP29: =-'[4]1589'!$J$33 -> 15553 | AQ29: ='[9]Summary Impact 2012_13'!$G$8 -> 60232.10175 | AR29: 97813.48175 | AS29: -305363.1131 | AT29: =SUM('[5]1589'!$D$33:$E$33) -> 1473743.97 | AU29: =-'[5]1589'!$F$33 -> -3304844.06 | AV29: ='[5]1589'!$G$21+'[5]1589'!$G$32 -> 5344769.494 | AW29: 9817994.411 | AX29: 97813.48175 | AY29: ='[5]1589'!$I$33 -> 92778.54 | AZ29: =-'[5]1589'!$J$33 -> 5958.95 | BB29: 184633.0717 | BC29: 9817994.411 | BD29: =SUM('[6]1589'!$D$33:$E$33) -> 2612620.86 | BE29: =-'[6]1589'!$F$33 -> 2999480.953 | BG29: 9431134.318 | BH29: 184633.0717 | BI29: ='[6]1589'!$I$33 -> 97517.38 | BJ29: =-SUM('[6]1589'!$J$33:$K$33) -> 87365.69175 | BL29: 194784.76 | BM29: 9431134.318 | BN29: =SUM('[7]1589'!$D$20:$E$20) -> -3004934.77 | BO29: =-'[7]1589'!$F$20 -> 6818513.464 | BP29: -1808419 | BQ29: -2200732.916 | BR29: 194784.76 | BS29: ='[7]1589'!$I$20 -> 28693.39 | BT29: =-SUM('[7]1589'!$J$20:$K$20) -> 178578.15 | BV29: 44900 | BW29: =-'[7]1589'!$F$25 -> 2612620.86 | BX29: =-SUM('[7]1589'!$J$25:$K$25) -> 44945.44 | BY29: -4813353.776 | BZ29: -45.44 | CA29: -52946.89154 | CC29: -52992.33154 | CD29: -4866346.108 | CE29: =SUM('[8]Dec 2016YTD-MIFRS'!$N$13:$N$15) -> -347413.9261 | CF29: 1808418.99
C30: Disposition and Recovery/Refund of Regulatory Balances (2009)4 | D30: 1595 | I30: 0 | N30: 0 | O30: 0 | P30: -2913895.85 | S30: -2913895.85 | T30: 0 | U30: -2492081.56 | X30: -2492081.56 | Y30: -2913895.85 | Z30: ='[3]1595 (IRM10)'!$F$22 -> 2840650.07 | AC30: -73245.78 | AD30: -2492081.56 | AE30: ='[3]1595 (IRM10)'!$J$22+'[3]1595 (COS08)'!$J$22 -> -9602.92 | AH30: -2501684.48 | AI30: -73245.78 | AM30: -73245.78 | AN30: -2501684.48 | AO30: ='[4]1595 (IRM10)'!$J$26+'[4]1595 (COS08)'!$J$26 -> -1076.76 | AR30: -2502761.24 | AS30: -73245.78 | AW30: -73245.78 | AX30: -2502761.24 | AY30: ='[5]1595 (IRM10)'!$J$26+'[5]1595 (COS08)'!$J$26 -> -1076.76 | BB30: -2503838 | BC30: -73245.78 | BE30: =-('[6]1595 (COS08)'!$G$14+'[6]1595 (IRM10)'!$G$14) -> -73245.78 | BG30: 4.656612873e-10 | BH30: -2503838 | BJ30: =-(SUM('[6]1595 (COS08)'!$K$14:$L$14)+SUM('[6]1595 (IRM10)'!$K$14:$L$14)) -> -2503838 | BL30: 4.656612873e-10 | BM30: 4.656612873e-10 | BQ30: 4.656612873e-10 | BR30: 4.656612873e-10 | BV30: 4.656612873e-10 | BY30: 4.656612873e-10 | BZ30: 4.656612873e-10 | CA30: 5.12227416e-12 | CC30: 4.707835615e-10 | CD30: 9.364448488e-10 | CF30: -9.313225746e-10
C31: Disposition and Recovery/Refund of Regulatory Balances (2010)4 | D31: 1595 | I31: 0 | N31: 0 | O31: 0 | P31: 1927441.57 | S31: 1927441.57 | T31: 0 | U31: -21555.89 | X31: -21555.89 | Y31: 1927441.57 | Z31: ='[3]1595 (COS11)'!$F$22 -> -2230636.57 | AC31: -303195 | AD31: -21555.89 | AE31: ='[3]1595 (COS11)'!$J$22 -> 13368.49 | AH31: -8187.4 | AI31: -303195 | AM31: -303195 | AN31: -8187.4 | AO31: ='[4]1595 (COS11)'!$J$26 -> -4456.92 | AR31: -12644.32 | AS31: -303195 | AW31: -303195 | AX31: -12644.32 | AY31: ='[5]1595 (COS11)'!$J$26 -> -4456.92 | BB31: -17101.24 | BC31: -303195 | BE31: =-'[6]1595 (COS11)'!$G$14 -> -303195 | BG31: 0 | BH31: -17101.24 | BJ31: =-SUM('[6]1595 (COS11)'!$K$14:$L$14) -> -17101.24 | BL31: 3.637978807e-12 | BM31: 0 | BQ31: 0 | BR31: 3.637978807e-12 | BV31: 3.637978807e-12 | BY31: 0 | BZ31: 3.637978807e-12 | CA31: 0 | CC31: 3.637978807e-12 | CD31: 3.637978807e-12 | CF31: -3.637978807e-12
C32: Disposition and Recovery/Refund of Regulatory Balances (2011)4 | D32: 1595 | I32: 0 | N32: 0 | O32: 0 | P32: -8695917.68 | S32: =O32+P32-Q32+SUM(R32:R32) -> -8695917.68 | T32: 0 | U32: -154326.92 | X32: -154326.92 | Y32: -8695917.68 | Z32: ='[3]1595 (IRM12)'!$F$22 -> 9300673.24 | AC32: 604755.56 | AD32: -154326.92 | AE32: ='[3]1595 (IRM12)'!$J$22 -> -65930.35 | AH32: -220257.27 | AI32: 604755.56 | AM32: 604755.56 | AN32: -220257.27 | AO32: ='[4]1595 (IRM12)'!$J$26 -> 8889.96 | AR32: -211367.31 | AS32: 604755.56 | AW32: 604755.56 | AX32: -211367.31 | AY32: ='[5]1595 (IRM12)'!$J$26 -> 8889.96 | BB32: -202477.35 | BC32: 604755.56 | BE32: =-'[6]1595 (IRM12)'!$G$14 -> 604755.56 | BG32: 0 | BH32: -202477.35 | BJ32: =-SUM('[6]1595 (IRM12)'!$K$14:$L$14) -> -202477.35 | BL32: 0 | BM32: 0 | BQ32: 0 | BR32: 0 | BV32: 0 | BY32: 0 | BZ32: 0 | CA32: 0 | CC32: 0 | CD32: 0 | CF32: 0
C33: Disposition and Recovery/Refund of Regulatory Balances (2012)4 | D33: 1595 | I33: 0 | N33: 0 | O33: 0 | P33: 0 | S33: 0 | T33: 0 | U33: 0 | X33: 0 | Y33: 0 | AA33: =-'[3]1595 (Def PILs)'!$F$23 -> -2039038 | AB33: ='[3]1595 (Def PILs)'!$D$23 -> -493721.79 | AC33: 1545316.21 | AD33: 0 | AF33: =-'[3]1595 (Def PILs)'!$J$23 -> -1284828 | AG33: ='[3]1595 (Def PILs)'!$I$23 -> 2206.5 | AH33: 1287034.5 | AI33: 1545316.21 | AJ33: ='[4]1595 (Def PILs)'!$D$27 -> -2940696.39 | AM33: -1395380.18 | AN33: 1287034.5 | AO33: ='[4]1595 (Def PILs)'!$I$27 -> 1788.85 | AQ33: ='[4]1595 (Def PILs)'!$K$27 -> 1306.01415 | AR33: 1290129.364 | AS33: -1395380.18 | AW33: -1395380.18 | AX33: 1290129.364 | AY33: ='[5]1595 (Def PILs)'!$I$27 -> -20512.08 | BB33: 1269617.284 | BC33: -1395380.18 | BE33: =-'[6]1595 (Def PILs)'!$F$15 -> -1395380.18 | BG33: 4.656612873e-10 | BH33: 1269617.284 | BJ33: =-SUM('[6]1595 (Def PILs)'!$J$15:$K$15) -> 1269617.28 | BL33: 0.004149999935 | BM33: 4.656612873e-10 | BQ33: 4.656612873e-10 | BR33: 0.004149999935 | BV33: 0.004149999935 | BY33: 4.656612873e-10 | BZ33: 0.004149999935 | CA33: 5.12227416e-12 | CC33: 0.00414999994 | CD33: 0.004150000406 | CF33: -0.004150000401
C34: Disposition and Recovery/Refund of Regulatory Balances (2013)4 | D34: 1595 | I34: 0 | N34: 0 | O34: 0 | P34: 0 | S34: 0 | T34: 0 | U34: 0 | X34: 0 | Y34: 0 | AC34: 0 | AD34: 0 | AH34: 0 | AI34: 0 | AJ34: ='[4]1595 (IRM13)'!$D$27 -> 5370488.58 | AK34: =-'[4]1595 (IRM13)'!$F$27 -> 4894519.46 | AM34: 475969.12 | AN34: 0 | AO34: ='[4]1595 (IRM13)'!$I$27 -> -30180.30351 | AP34: =-'[4]1595 (IRM13)'!$J$27 -> 72247 | AR34: -102427.3035 | AS34: 475969.12 | AW34: 475969.12 | AX34: -102427.3035 | AY34: ='[5]1595 (IRM13)'!$I$27 -> 6996.722172 | BB34: -95430.58133 | BC34: 475969.12 | BE34: =-'[6]1595 (IRM13)'!$F$15 -> 475969.12 | BG34: -9.313225746e-10 | BH34: -95430.58133 | BJ34: =-SUM('[6]1595 (IRM13)'!$J$15:$K$15) -> -95430.58 | BL34: -0.001334500004 | BM34: -9.313225746e-10 | BQ34: -9.313225746e-10 | BR34: -0.001334500004 | BV34: -0.001334500004 | BY34: -9.313225746e-10 | BZ34: -0.001334500004 | CA34: -1.024454832e-11 | CC34: -0.001334500015 | CD34: -0.001334500946 | CF34: =CE34-SUM(BG34,BL34) -> 0.001334500936
C35: Disposition and Recovery/Refund of Regulatory Balances (2014)4 | D35: 1595 | I35: 0 | N35: 0 | O35: 0 | P35: 0 | S35: 0 | T35: 0 | U35: 0 | X35: 0 | Y35: 0 | AC35: 0 | AD35: 0 | AH35: 0 | AI35: 0 | AM35: 0 | AN35: 0 | AR35: 0 | AS35: 0 | AT35: ='[5]1595 (IRM14)'!$D$27+'[5]1595 (IRM14)'!$J$15+SUM('[5]1595 (IRM14)'!$I$15:$I$25) -> 10296123.94 | AU35: =-'[5]1595 (IRM14)'!$F$27 -> 10223947.43 | AW35: 72176.50984 | AX35: 0 | AY35: ='[5]1595 (IRM14)'!$I$27-'[5]1595 (IRM14)'!$J$15-SUM('[5]1595 (IRM14)'!$I$15:$I$25) -> 174450.57 | AZ35: =-'[5]1595 (IRM14)'!$J$27 -> 175163.77 | BB35: -713.2 | BC35: 72176.50984 | BG35: 72176.50984 | BH35: -713.2 | BI35: ='[6]1595 (IRM14)'!$I$27 -> 860.7018008 | BL35: 147.5018008 | BM35: 72176.50984 | BO35: =-'[10]1595 (IRM14)'!$F$17 -> 72176.51 | BQ35: -0.00015895463 | BR35: 147.5018008 | BT35: =-SUM('[10]1595 (IRM14)'!$J$17:$K$17) -> 147.5 | BV35: 0.001800833321 | BY35: -0.00015895463 | BZ35: 0.001800833321 | CA35: -1.74850093e-06 | CC35: =BZ35+CA35+CB35 -> 0.001799084821 | CD35: =SUM(BY35:CB35) -> 0.00164013019 | CF35: -0.001641878691
C36: Disposition and Recovery/Refund of Regulatory Balances (2015)4 | D36: 1595 | I36: 0 | N36: 0 | O36: 0 | P36: 0 | S36: 0 | T36: 0 | U36: 0 | X36: 0 | Y36: 0 | AC36: 0 | AD36: 0 | AH36: 0 | AI36: 0 | AM36: 0 | AN36: 0 | AR36: 0 | AS36: 0 | AW36: 0 | AX36: 0 | BB36: 0 | BC36: 0 | BD36: ='[6]1595-G2 Prior 2011'!$N$11+'[6]Total 1595 - G2 Post 2011'!$N$11 -> -256826.8305 | BE36: =-('[6]1595-G1'!$B$5+'[6]1595-G2 Prior 2011'!$B$5+'[6]Total 1595 - G2 Post 2011'!$B$5) -> -456725.3173 | BG36: 199898.4868 | BH36: 0 | BI36: ='[6]1595-G1'!$N$17+'[6]1595-G2 Prior 2011'!$N$17+'[6]Total 1595 - G2 Post 2011'!$N$16 -> 1587898.734 | BJ36: =-('[6]1595-G1'!$B$6+'[6]1595-G2 Prior 2011'!$B$6+'[6]Total 1595 - G2 Post 2011'!$B$6) -> 1610163.362 | BK36: ='[6]1595-G1'!$N$16+'[6]1595-G2 Prior 2011'!$N$16 -> 4709.509837 | BL36: -17555.11871 | BM36: 199898.4868 | BQ36: 199898.4868 | BR36: -17555.11871 | BS36: ='[10]1595-G1'!$N$38+'[10]Total 1595 - G2 Post 2011'!$N$38 -> 2198.883355 | BV36: -15356.23536 | BW36: =-('[7]1595-G1'!$B$54+'[7]Total 1595 - G2 Post 2011'!$B$54) -> 199898.4868 | BX36: =-('[7]1595-G1'!$B$59+'[7]1595-G2 Prior 2011'!$B$59+'[7]Total 1595 - G2 Post 2011'!$B$59) -> -15356.23871 | BY36: 0 | BZ36: 0.003354679986 | CA36: 0 | CC36: 0.003354679986 | CD36: 0.003354679986 | CE36: ='[8]Dec 2016YTD-MIFRS'!$N$17+'[8]Dec 2016YTD-MIFRS'!$N$24+'[8]Dec 2016YTD-MIFRS'!$N$40 -> 184542.2514 | CF36: 2.328306437e-10
C37: Disposition and Recovery/Refund of Regulatory Balances (2016)4 Not to be disposed of unless rate rider has expired and balance has been audited | D37: 1595 | I37: 0 | N37: 0 | O37: 0 | P37: 0 | S37: 0 | T37: 0 | U37: 0 | X37: 0 | Y37: 0 | AC37: 0 | AD37: 0 | AH37: 0 | AI37: 0 | AM37: 0 | AN37: 0 | AR37: 0 | AS37: 0 | AW37: 0 | AX37: 0 | BB37: 0 | BC37: 0 | BG37: 0 | BH37: 0 | BL37: 0 | BM37: 0 | BN37: ='[10]1595-G1 (2015)'!$N$11 -> -8988871.513 | BO37: =-'[10]1595-G1 (2015)'!$B$10 -> -9183779.801 | BQ37: 194908.2876 | BR37: 0 | BS37: ='[10]1595-G1 (2015)'!$N$16 -> 47944.96192 | BT37: =-'[10]1595-G1 (2015)'!$N$15 -> -343677.9537 | BV37: 391622.9157 | BY37: 194908.2876 | BZ37: 391622.9157 | CA37: 2143.991163 | CC37: 393766.9068 | CD37: 588675.1944 | CE37: ='[8]Dec 2016YTD-MIFRS'!$N$18 -> 586531.2032 | CF37: 0
C39: =C29 -> RSVA - Global Adjustment | D39: 1589 | E39: =E29 -> 0 | F39: 0 | G39: 0 | H39: 0 | I39: 0 | J39: 0 | K39: 0 | L39: 0 | M39: 0 | N39: 0 | O39: 0 | P39: 1058062.99 | Q39: 0 | R39: 0 | S39: 1058062.99 | T39: 0 | U39: 69597.94 | V39: 0 | W39: 0 | X39: 69597.94 | Y39: 1058062.99 | Z39: -3235246.12 | AA39: 0 | AB39: 0 | AC39: -2177183.13 | AD39: 69597.94 | AE39: 495.22 | AF39: 0 | AG39: 0 | AH39: 70093.16 | AI39: -2177183.13 | AJ39: -1669046.04 | AK39: 1127660.93 | AL39: 4668526.987 | AM39: -305363.1131 | AN39: 70093.16 | AO39: -16958.78 | AP39: 15553 | AQ39: 60232.10175 | AR39: 97813.48175 | AS39: -305363.1131 | AT39: 1473743.97 | AU39: -3304844.06 | AV39: 5344769.494 | AW39: 9817994.411 | AX39: 97813.48175 | AY39: 92778.54 | AZ39: 5958.95 | BA39: 0 | BB39: 184633.0717 | BC39: 9817994.411 | BD39: 2612620.86 | BE39: 2999480.953 | BF39: 0 | BG39: 9431134.318 | BH39: 184633.0717 | BI39: 97517.38 | BJ39: 87365.69175 | BK39: 0 | BL39: 194784.76 | BM39: 9431134.318 | BN39: -3004934.77 | BO39: 6818513.464 | BP39: -1808419 | BQ39: =BQ29 -> -2200732.916 | BR39: 194784.76 | BS39: 28693.39 | BT39: 178578.15 | BU39: 0 | BV39: 44900 | BW39: 2612620.86 | BX39: 44945.44 | BY39: -4813353.776 | BZ39: -45.44 | CA39: =CA29 -> -52946.89154 | CB39: =CB29 -> 0 | CC39: =CC29 -> -52992.33154 | CD39: =CD29 -> -4866346.108 | CE39: =CE29 -> -347413.9261 | CF39: =CE39-SUM(BQ39,BV39) -> 1808418.99
C40: Total Group 1 Balance excluding Account 1589 - Global Adjustment | E40: =SUM(E21:E37)-E29 -> 0 | F40: =SUM(F21:F37)-F29 -> 0 | G40: 0 | H40: 0 | I40: 0 | J40: 0 | K40: 0 | L40: 0 | M40: 0 | N40: 0 | O40: 0 | P40: -15655123.52 | Q40: 0 | R40: 0 | S40: -15655123.52 | T40: 0 | U40: -2717393.33 | V40: 0 | W40: 0 | X40: -2717393.33 | Y40: -15655123.52 | Z40: 2942153.771 | AA40: -2039038 | AB40: -493721.79 | AC40: -11167653.54 | AD40: -2717393.33 | AE40: -179947.01 | AF40: -1284828 | AG40: 2206.5 | AH40: -1610305.84 | AI40: -11167653.54 | AJ40: 4900338.85 | AK40: -1127660.93 | AL40: -4651558.987 | AM40: -9791212.746 | AN40: -1610305.84 | AO40: -115737.6235 | AP40: -15553 | AQ40: -58926.0876 | AR40: -1769416.551 | AS40: -9791212.746 | AT40: 15355499.31 | AU40: 3304844.06 | AV40: -2766285.494 | AW40: -506842.9906 | AX40: -1769416.551 | AY40: 168326.3422 | AZ40: -5958.95 | BA40: 0 | BB40: -1595131.259 | BC40: -506842.9906 | BD40: -11310386.1 | BE40: -3328834.651 | BF40: 0 | BG40: -8488394.44 | BH40: -1595131.259 | BI40: 1591086.866 | BJ40: -121861.8354 | BK40: 4709.509837 | BL40: 122526.9519 | BM40: -8488394.44 | BN40: =SUM(BN21:BN37)-BN29 -> -12992103.52 | BO40: -6818513.415 | BP40: 819534 | BQ40: -13842450.55 | BR40: =SUM(BR21:BR37)-BR29 -> 122526.9519 | BS40: -72019.26446 | BT40: -177507.6553 | BU40: 0 | BV40: 228015.3428 | BW40: -10978404.3 | BX40: -163710.448 | BY40: -2864046.245 | BZ40: 391725.7908 | CA40: -31504.5087 | CB40: 0 | CC40: 360221.2821 | CD40: -2503824.963 | CE40: =SUM(CE21:CE37)-CE29 -> -14433969.14 | CF40: =CE40-SUM(BQ40,BV40) -> -819533.9318
C41: Total Group 1 Balance | E41: =SUM(E39,E40) -> 0 | F41: =SUM(F39,F40) -> 0 | G41: 0 | H41: 0 | I41: 0 | J41: 0 | K41: 0 | L41: 0 | M41: 0 | N41: 0 | O41: 0 | P41: =SUM(P39,P40) -> -14597060.53 | Q41: =SUM(Q39,Q40) -> 0 | R41: 0 | S41: -14597060.53 | T41: 0 | U41: -2647795.39 | V41: 0 | W41: 0 | X41: -2647795.39 | Y41: -14597060.53 | Z41: -293092.349 | AA41: -2039038 | AB41: -493721.79 | AC41: -13344836.67 | AD41: -2647795.39 | AE41: -179451.79 | AF41: -1284828 | AG41: 2206.5 | AH41: -1540212.68 | AI41: -13344836.67 | AJ41: 3231292.81 | AK41: 0 | AL41: 16968 | AM41: -10096575.86 | AN41: -1540212.68 | AO41: -132696.4035 | AP41: 0 | AQ41: 1306.01415 | AR41: -1671603.069 | AS41: -10096575.86 | AT41: 16829243.28 | AU41: 0 | AV41: 2578484 | AW41: 9311151.421 | AX41: -1671603.069 | AY41: 261104.8822 | AZ41: 0 | BA41: 0 | BB41: -1410498.187 | BC41: 9311151.421 | BD41: -8697765.241 | BE41: -329353.6973 | BF41: 0 | BG41: 942739.8776 | BH41: -1410498.187 | BI41: 1688604.246 | BJ41: -34496.1437 | BK41: 4709.509837 | BL41: 317311.7119 | BM41: 942739.8776 | BN41: -15997038.29 | BO41: 0.04915894195 | BP41: -988885 | BQ41: -16043183.46 | BR41: 317311.7119 | BS41: -43325.87446 | BT41: 1070.49466 | BU41: 0 | BV41: 272915.3428 | BW41: -8365783.443 | BX41: -118765.008 | BY41: -7677400.022 | BZ41: 391680.3508 | CA41: -84451.40024 | CB41: 0 | CC41: 307228.9506 | CD41: =SUM(CD39,CD40) -> -7370171.071 | CE41: =SUM(CE39,CE40) -> -14781383.06 | CF41: =CE41-SUM(BQ41,BV41) -> 988885.0584
A43: 29 | C43: LRAM Variance Account (only input amounts if applying for disposition of this account) | D43: 1568 | S43: =O43+P43-Q43+SUM(R43:R43) -> 0 | X43: =T43+U43-V43+W43 -> 0 | Y43: =S43 -> 0 | Z43: -237216 | AC43: =Y43+Z43-AA43+SUM(AB43:AB43) -> -237216 | AD43: =X43 -> 0 | AE43: -278 | AH43: =AD43+AE43-AF43+AG43 -> -278 | AI43: =AC43 -> -237216 | AM43: =AI43+AJ43-AK43+SUM(AL43:AL43) -> -237216 | AN43: =AH43 -> -278 | AO43: -3487 | AR43: =AN43+AO43-AP43+AQ43 -> -3765 | AS43: =AM43 -> -237216 | AT43: -59871 | AW43: =AS43+AT43-AU43+SUM(AV43:AV43) -> -297087 | AX43: =AR43 -> -3765 | AY43: -3487 | BB43: =AX43+AY43-AZ43+BA43 -> -7252 | BC43: =AW43 -> -297087 | BD43: 85881 | BE43: -237216 | BG43: =BC43+BD43-BE43+SUM(BF43:BF43) -> 26010 | BH43: =BB43 -> -7252 | BI43: -1005 | BJ43: -7252 | BL43: =BH43+BI43-BJ43+BK43 -> -1005 | BM43: =BG43 -> 26010 | BN43: 303456 | BQ43: =BM43+BN43-BO43+SUM(BP43:BP43) -> 329466 | BR43: =BL43 -> -1005 | BS43: 564 | BV43: =BR43+BS43-BT43+BU43 -> -441 | BY43: =BQ43-BW43 -> 329466 | BZ43: =BV43-BX43 -> -441 | CC43: =BZ43+CA43+CB43 -> -441 | CD43: =SUM(BY43:CB43) -> 329025 | CE43: 329026 | CF43: =CE43-SUM(BQ43,BV43) -> 1
C45: Total including Account 1568 | E45: =SUM(E41,E43) -> 0 | F45: =SUM(F41,F43) -> 0 | G45: 0 | H45: 0 | I45: 0 | J45: 0 | K45: 0 | L45: 0 | M45: 0 | N45: 0 | O45: 0 | P45: -14597060.53 | Q45: 0 | R45: 0 | S45: -14597060.53 | T45: 0 | U45: -2647795.39 | V45: 0 | W45: 0 | X45: -2647795.39 | Y45: -14597060.53 | Z45: -530308.349 | AA45: -2039038 | AB45: -493721.79 | AC45: -13582052.67 | AD45: -2647795.39 | AE45: -179729.79 | AF45: -1284828 | AG45: 2206.5 | AH45: -1540490.68 | AI45: -13582052.67 | AJ45: 3231292.81 | AK45: 0 | AL45: 16968 | AM45: -10333791.86 | AN45: -1540490.68 | AO45: -136183.4035 | AP45: 0 | AQ45: 1306.01415 | AR45: -1675368.069 | AS45: -10333791.86 | AT45: 16769372.28 | AU45: 0 | AV45: 2578484 | AW45: 9014064.421 | AX45: -1675368.069 | AY45: 257617.8822 | AZ45: 0 | BA45: 0 | BB45: -1417750.187 | BC45: 9014064.421 | BD45: -8611884.241 | BE45: -566569.6973 | BF45: 0 | BG45: 968749.8776 | BH45: -1417750.187 | BI45: 1687599.246 | BJ45: -41748.1437 | BK45: 4709.509837 | BL45: 316306.7119 | BM45: 968749.8776 | BN45: -15693582.29 | BO45: 0.04915894195 | BP45: -988885 | BQ45: -15713717.46 | BR45: 316306.7119 | BS45: -42761.87446 | BT45: 1070.49466 | BU45: 0 | BV45: 272474.3428 | BW45: -8365783.443 | BX45: -118765.008 | BY45: -7347934.022 | BZ45: 391239.3508 | CA45: -84451.40024 | CB45: =SUM(CB41,CB43) -> 0 | CC45: =SUM(CC41,CC43) -> 306787.9506 | CD45: =SUM(CD41,CD43) -> -7041146.071 | CE45: =SUM(CE41,CE43) -> -14452357.06 | CF45: =SUM(CF41,CF43) -> 988886.0584
C48: For all OEB-Approved dispositions, please ensure that the disposition amount has the same sign (e.g: debit balances are to have a positive figure and credit balance are to have a negative figure) as per the related OEB decision.
B51: 1 | C51: Please provide explanations for the nature of the adjustments. If the adjustment relates to previously OEB-Approved disposed balances, please provide amounts for adjustments and include supporting documentations.
B52: 2 | C52: For RSVA accounts only, report the net variance to the account during the year. For all other accounts, record the transactions during the year.
B53: 3 | C53: If the LDC’s rate year begins on January 1, 2017, the projected interest is recorded from January 1, 2016 to December 31, 2016 on the December 31, 2015 balances adjusted for the disposed balances approved by the OEB in the 2016 rate decision. If the LDC’s rate year begins on May 1, 2017, the projected interest is recorded from January 1, 2016 to April 30, 2017 on the December 31, 2015 balances adjusted for the disposed interest balances approved by the OEB in the 2016 rate decision.
B54: 4 | C54: Include Account 1595 as part of Group 1 accounts (lines 30-36) for review and disposition if the recovery (or refund) period has been completed. If the recovery (or refund) period has not been completed, do not include the respective balance in Account 1595 for disposition at this time.
C56: Account 1595 - adjustments (2016):
C57: These were required due to a comprehensive review of all the dispositions during 2015 and 2016. It was determined that there were a number of reporting errors. Past recovery billings were applied to the wrong year or there was transposition errors whereby billings were applied to interest rather than principal or vice versa.

Sheet 4. Billing Det. for Def-Var
A1: Back to Index | K1: Yes | T1: =IF(D18="YES", "YES", "NO") -> NO
B2: INCENTIVE REGULATION MODEL FOR 2018 FILERS
B13: Information from the most recent RRR (2016 for 2018 IRM)
L14: Approved Recoveries (class allocation %)
D15: Total Metered kWh | E15: Total Metered kW | F15: Metered kWh for Non-RPP Customers | G15: Metered kW for Non-RPP Customers | H15: Metered kWh for Wholesale Market Participants (WMP) | I15: Metered kW for Wholesale Market Participants (WMP) | J15: Total Metered kWh less WMP consumption (if applicable) | K15: Total Metered kW less WMP consumption (if applicable) | L15: 1595 Recovery Proportion (2009) 1 | M15: 1595 Recovery Proportion (2010) 1 | N15: 1595 Recovery Proportion (2011) 1 | O15: 1595 Recovery Proportion (2012) 1 | P15: 1595 Recovery Proportion (2013) 1 | Q15: 1595 Recovery Proportion (2014) 1 | R15: 1595 Recovery Proportion (2015) 1 | S15: 1595 Recovery Proportion (2016) 1 | T15: 1568 LRAM Variance Account Class Allocation ($ amounts) | U15: Number of Customers for Residential and GS<50 classes3
B16: Rate Class | C16: Unit
B17: RESIDENTIAL | C17: kWh | D17: ='[11]Table - Bill Determinants '!$G$5 -> 1647803823 | E17: ='[11]Table - Bill Determinants '!$F$5 -> 0 | F17: ='[11]Table - Bill Determinants '!$E$30 -> 90346673 | G17: ='[11]Table - Bill Determinants '!$I$30 -> 0 | J17: =D17-H17 -> 1647803823 | K17: =E17-I17 -> 0 | R17: =+$D17/$D$29 -> 0.3044348031 | S17: =+$D17/$D$29 -> 0.3044348031 | T17: 439120.0491 | U17: ='[11]Table - Bill Determinants '!$H$5 -> 223311
B18: GENERAL SERVICE LESS THAN 50 KW | C18: kWh | D18: ='[11]Table - Bill Determinants '!$G$6 -> 595148676.1 | E18: ='[11]Table - Bill Determinants '!$F$6 -> 0 | F18: ='[11]Table - Bill Determinants '!$E$31 -> 103898341 | G18: ='[11]Table - Bill Determinants '!$I$31 -> 0 | J18: =D18-H18 -> 595148676.1 | K18: =E18-I18 -> 0 | R18: =+$D18/$D$29 -> 0.1099548183 | S18: 0.1099548183 | T18: 327547.7139 | U18: ='[11]Table - Bill Determinants '!$H$6 -> 18774
B19: GENERAL SERVICE 50 TO 4,999 KW | C19: kW | D19: ='[11]Table - Bill Determinants '!$G$7 -> 1811883809 | E19: ='[11]Table - Bill Determinants '!$F$7 -> 4895437.151 | F19: ='[11]Table - Bill Determinants '!$E$32 -> 1611281237 | G19: ='[11]Table - Bill Determinants '!$I$32 -> 4353439.216 | H19: ='[11]Summary Class A & WMP'!$J$9 -> 11571593.05 | I19: ='[11]Summary Class A & WMP'!$F$9 -> 19879.495 | J19: =D19-H19 -> 1800312216 | K19: =E19-I19 -> 4875557.656 | R19: 0.3347488838 | S19: 0.3347488838 | T19: 266734.9223
B20: LARGE USE (1) | C20: kW | D20: ='[11]Table - Bill Determinants '!$G$8 -> 248933055.6 | E20: ='[11]Table - Bill Determinants '!$F$8 -> 512415.67 | F20: ='[11]Table - Bill Determinants '!$E$33 -> 248933055.6 | G20: ='[11]Table - Bill Determinants '!$I$33 -> 512415.67 | H20: ='[11]Summary Class A & WMP'!$K$12 -> 34977749.63 | I20: ='[11]Summary Class A & WMP'!$G$12 -> 121008.7761 | J20: 213955306 | K20: 391406.8939 | R20: 0.0459908423 | S20: 0.0459908423 | T20: 152122.0304
B21: LARGE USE (2) | C21: kW | D21: ='[11]Table - Bill Determinants '!$G$9 -> 1065021673 | E21: ='[11]Table - Bill Determinants '!$F$9 -> 1901226.94 | F21: ='[11]Table - Bill Determinants '!$E$34 -> 1065021673 | G21: ='[11]Table - Bill Determinants '!$I$34 -> 1901226.94 | H21: =+'[11]Summary Class A & WMP'!$L$10+'[11]Summary Class A & WMP'!$L$11 -> 714705718.5 | I21: =+'[11]Summary Class A & WMP'!$H$10+'[11]Summary Class A & WMP'!$H$11 -> 1122771.789 | J21: 350315954.6 | K21: 778455.1512 | R21: 0.1967647233 | S21: 0.1967647233 | T21: 9268.236443
B22: UNMETERED SCATTERED LOAD | C22: kWh | D22: ='[11]Table - Bill Determinants '!$G$10 -> 11571071.96 | E22: ='[11]Table - Bill Determinants '!$F$10 -> 0 | F22: ='[11]Table - Bill Determinants '!$E$35 -> 388224 | G22: ='[11]Table - Bill Determinants '!$I$35 -> 0 | J22: 11571071.96 | K22: 0 | R22: 0.002137776939 | S22: 0.002137776939
B23: SENTINEL LIGHTING | C23: kW | D23: ='[11]Table - Bill Determinants '!$G$11 -> 438984.6484 | E23: ='[11]Table - Bill Determinants '!$F$11 -> 1213.423076 | F23: ='[11]Table - Bill Determinants '!$E$36 -> 4428 | G23: ='[11]Table - Bill Determinants '!$I$36 -> 12.23969312 | J23: =D23-H23 -> 438984.6484 | K23: 1213.423076 | R23: 8.110322548e-05 | S23: 8.110322548e-05
B24: STREET LIGHTING | C24: kW | D24: ='[11]Table - Bill Determinants '!$G$12 -> 31864627.86 | E24: ='[11]Table - Bill Determinants '!$F$12 -> 88666.23 | F24: ='[11]Table - Bill Determinants '!$E$37 -> 31636372.86 | G24: ='[11]Table - Bill Determinants '!$I$37 -> 88031.08968 | J24: =D24-H24 -> 31864627.86 | K24: 88666.23 | R24: 0.005887048915 | S24: 0.005887048915 | T24: 86523.83987
J25: =D25-H25 -> 0 | K25: 0 | R25: 0 | S25: 0
J26: 0 | K26: 0 | R26: 0 | S26: 0
J27: 0 | K27: 0 | R27: 0 | S27: 0
J28: 0 | K28: 0 | R28: 0 | S28: 0
C29: Total | D29: =SUM(D17:D28) -> 5412665721 | E29: =SUM(E17:E28) -> 7398959.414 | F29: 3151510005 | G29: 6855125.156 | H29: 761255061.2 | I29: 1263660.06 | J29: 4651410660 | K29: 6135299.354 | L29: 0 | M29: 0 | N29: 0 | O29: 0 | P29: 0 | Q29: 0 | R29: 1 | S29: 1 | T29: 1281316.792 | U29: 242085
B32: Threshold Test | R32: 1568 Account Balance from Continuity Schedule | U32: ='3. Continuity Schedule'!CD43 -> 329025
B33: Total Claim per Continuity (including Account 1568) | D33: ='3. Continuity Schedule'!CD45 -> -7041146.071 | R33: =IF(U32=T29,"Total Balance of Account 1568 in Column R matches the amount entered on the Continuity Schedule","Total Balance of Account 1568 in Column T DOES NOT MATCH the amount entered on the Continuity Schedule") -> Total Balance of Account 1568 in Column T DOES NOT MATCH the amount entered on the Continuity Schedule
B34: RPP True-up Account 1588 | D34: =+'[11]Table - Def & Var Acct '!$J$27+'[11]Table - Def & Var Acct '!$K$27 -> 0
B35: Total Claim for Threshold Test (All Group 1 Accounts) | D35: =+D34+D33 -> -7041146.071
B36: Threshold Test (Total claim per kWh) 2 | D36: =IFERROR(D35/D29,"") -> -0.001300864756
B37: Exceeds Threshold? | D37: =IF(D36="","",IF(OR(D36>0.001,D36<-0.001),"Yes","No")) -> Yes
B38: ELECT TO DISPOSE of the Group 1 Account Balances? | D38: Yes
B41: As per Section 3.2.5 of the 2017 Filing Requirements for Electricity Distribution Rate Applications, an applicant may elect to dispose of the Group 1 account balances below the threshold.
B42: 1 Residual Account balance to be allocated to rate classes in proportion to the recovery share as established when rate riders were implemented.
B43: 2 The Threshold Test does not include the amount in 1568.
B44: 3 The proportion of customers for the Residential and GS<50 Classes will be used to allocate Account 1551.

Sheet 5. Allocating Def-Var Balances
A1: Back to Index
B2: INCENTIVE REGULATION MODEL FOR 2018 FILERS
B11: No input required. This workshseet allocates the deferral/variance account balances (Group 1 and 1568) to the appropriate classes as per EDDVAR dated July 31, 2009
B13: Allocation of Group 1 Accounts (including Account 1568)
C14: % of Total kWh | D14: % of Total non-RPP kWh | E14: % of Customer Numbers ** | F14: % of Total kWh adjusted for WMP | I14: allocated based on Total less WMP | N14: allocated based on Total less WMP | O14: 1595_(2009) | P14: 1595_(2010) | Q14: 1595_(2011) | R14: 1595_(2012) | S14: 1595_(2013) | T14: 1595_(2014) | U14: 1595_(2015) | V14: 1595_(2016) | W14: 1568
B15: Rate Class | G15: 1550 | H15: 1551 | I15: 1580 | J15: 1580 (Class A) | K15: 1580 (Class B) | L15: 1584 | M15: 1586 | N15: 1588
B16: ='4. Billing Det. for Def-Var'!B17 -> RESIDENTIAL | C16: =IFERROR('4. Billing Det. for Def-Var'!D17/'4. Billing Det. for Def-Var'!D$29,"") -> 0.3044348031 | D16: =IFERROR('4. Billing Det. for Def-Var'!F17/'4. Billing Det. for Def-Var'!F$29,"") -> 0.02866774114 | E16: =IFERROR('4. Billing Det. for Def-Var'!U17/'4. Billing Det. for Def-Var'!U$29,"") -> 0.9224487267 | F16: =IFERROR('4. Billing Det. for Def-Var'!J17/'4. Billing Det. for Def-Var'!J$29,"") -> 0.3542589428 | G16: =IFERROR(G$28*C16,"") -> 171032.6119 | H16: =IFERROR(H$28*E16,"") -> -22185.01095 | I16: =IFERROR(I$28*F16,"") -> -1614531.489 | L16: =IFERROR(L$28*$C16,"") -> -163662.5135 | M16: =IFERROR(M$28*$C16,"") -> 292193.4033 | N16: =IFERROR(N$28*$F16,"") -> 245814.7019 | O16: ='4. Billing Det. for Def-Var'!$L17*O$28 -> 0 | P16: ='4. Billing Det. for Def-Var'!$L17*P$28 -> 0 | Q16: ='4. Billing Det. for Def-Var'!$L17*Q$28 -> 0 | R16: ='4. Billing Det. for Def-Var'!$L17*R$28 -> 0 | S16: ='4. Billing Det. for Def-Var'!$L17*S$28 -> 0 | T16: ='4. Billing Det. for Def-Var'!$L17*T$28 -> 0 | U16: 0 | V16: =+$V$28*'4. Billing Det. for Def-Var'!S17 -> 179213.2169 | W16: ='4. Billing Det. for Def-Var'!T17 -> 439120.0491
B17: ='4. Billing Det. for Def-Var'!B18 -> GENERAL SERVICE LESS THAN 50 KW | C17: =IFERROR('4. Billing Det. for Def-Var'!D18/'4. Billing Det. for Def-Var'!D$29,"") -> 0.1099548183 | D17: =IFERROR('4. Billing Det. for Def-Var'!F18/'4. Billing Det. for Def-Var'!F$29,"") -> 0.03296779666 | E17: =IFERROR('4. Billing Det. for Def-Var'!U18/'4. Billing Det. for Def-Var'!U$29,"") -> 0.07755127331 | F17: =IFERROR('4. Billing Det. for Def-Var'!J18/'4. Billing Det. for Def-Var'!J$29,"") -> 0.1279501467 | G17: =IFERROR(G$28*C17,"") -> 61773.02853 | H17: =IFERROR(H$28*E17,"") -> -1865.118134 | I17: =IFERROR(I$28*F17,"") -> -583131.4777 | L17: =IFERROR(L$28*$C17,"") -> -59111.11922 | M17: 105533.5075 | N17: =IFERROR(N$28*$F17,"") -> 88782.59192 | O17: ='4. Billing Det. for Def-Var'!$L18*O$28 -> 0 | P17: ='4. Billing Det. for Def-Var'!$L18*P$28 -> 0 | Q17: ='4. Billing Det. for Def-Var'!$L18*Q$28 -> 0 | R17: ='4. Billing Det. for Def-Var'!$L18*R$28 -> 0 | S17: ='4. Billing Det. for Def-Var'!$L18*S$28 -> 0 | T17: ='4. Billing Det. for Def-Var'!$L18*T$28 -> 0 | U17: 0 | V17: =+$V$28*'4. Billing Det. for Def-Var'!S18 -> 64727.67406 | W17: ='4. Billing Det. for Def-Var'!T18 -> 327547.7139
B18: ='4. Billing Det. for Def-Var'!B19 -> GENERAL SERVICE 50 TO 4,999 KW | C18: =IFERROR('4. Billing Det. for Def-Var'!D19/'4. Billing Det. for Def-Var'!D$29,"") -> 0.3347488838 | D18: =IFERROR('4. Billing Det. for Def-Var'!F19/'4. Billing Det. for Def-Var'!F$29,"") -> 0.511272766 | E18: =IFERROR('4. Billing Det. for Def-Var'!U19/'4. Billing Det. for Def-Var'!U$29,"") -> 0 | F18: =IFERROR('4. Billing Det. for Def-Var'!J19/'4. Billing Det. for Def-Var'!J$29,"") -> 0.3870464999 | G18: =IFERROR(G$28*C18,"") -> 188063.176 | H18: 0 | I18: =IFERROR(I$28*F18,"") -> -1763960.443 | L18: -179959.2003 | M18: 321288.5473 | N18: =IFERROR(N$28*$F18,"") -> 268565.4714 | O18: ='4. Billing Det. for Def-Var'!$L19*O$28 -> 0 | P18: ='4. Billing Det. for Def-Var'!$L19*P$28 -> 0 | Q18: ='4. Billing Det. for Def-Var'!$L19*Q$28 -> 0 | R18: ='4. Billing Det. for Def-Var'!$L19*R$28 -> 0 | S18: ='4. Billing Det. for Def-Var'!$L19*S$28 -> 0 | T18: ='4. Billing Det. for Def-Var'!$L19*T$28 -> 0 | U18: 0 | V18: =+$V$28*'4. Billing Det. for Def-Var'!S19 -> 197058.3643 | W18: ='4. Billing Det. for Def-Var'!T19 -> 266734.9223
B19: ='4. Billing Det. for Def-Var'!B20 -> LARGE USE (1) | C19: =IFERROR('4. Billing Det. for Def-Var'!D20/'4. Billing Det. for Def-Var'!D$29,"") -> 0.0459908423 | D19: =IFERROR('4. Billing Det. for Def-Var'!F20/'4. Billing Det. for Def-Var'!F$29,"") -> 0.07898850242 | E19: =IFERROR('4. Billing Det. for Def-Var'!U20/'4. Billing Det. for Def-Var'!U$29,"") -> 0 | F19: =IFERROR('4. Billing Det. for Def-Var'!J20/'4. Billing Det. for Def-Var'!J$29,"") -> 0.04599793947 | G19: 25837.82736 | H19: 0 | I19: -209635.1361 | L19: -24724.42957 | M19: 44141.539 | N19: 31917.24586 | O19: ='4. Billing Det. for Def-Var'!$L20*O$28 -> 0 | P19: ='4. Billing Det. for Def-Var'!$L20*P$28 -> 0 | Q19: ='4. Billing Det. for Def-Var'!$L20*Q$28 -> 0 | R19: ='4. Billing Det. for Def-Var'!$L20*R$28 -> 0 | S19: ='4. Billing Det. for Def-Var'!$L20*S$28 -> 0 | T19: ='4. Billing Det. for Def-Var'!$L20*T$28 -> 0 | U19: 0 | V19: =+$V$28*'4. Billing Det. for Def-Var'!S20 -> 27073.66803 | W19: ='4. Billing Det. for Def-Var'!T20 -> 152122.0304
B20: ='4. Billing Det. for Def-Var'!B21 -> LARGE USE (2) | C20: =IFERROR('4. Billing Det. for Def-Var'!D21/'4. Billing Det. for Def-Var'!D$29,"") -> 0.1967647233 | D20: =IFERROR('4. Billing Det. for Def-Var'!F21/'4. Billing Det. for Def-Var'!F$29,"") -> 0.3379401213 | E20: =IFERROR('4. Billing Det. for Def-Var'!U21/'4. Billing Det. for Def-Var'!U$29,"") -> 0 | F20: =IFERROR('4. Billing Det. for Def-Var'!J21/'4. Billing Det. for Def-Var'!J$29,"") -> 0.07531391661 | G20: 110543.1581 | H20: 0 | I20: -343242.4005 | L20: -105779.6574 | M20: 188852.7645 | N20: 52259.14076 | O20: ='4. Billing Det. for Def-Var'!$L21*O$28 -> 0 | P20: ='4. Billing Det. for Def-Var'!$L21*P$28 -> 0 | Q20: ='4. Billing Det. for Def-Var'!$L21*Q$28 -> 0 | R20: ='4. Billing Det. for Def-Var'!$L21*R$28 -> 0 | S20: ='4. Billing Det. for Def-Var'!$L21*S$28 -> 0 | T20: ='4. Billing Det. for Def-Var'!$L21*T$28 -> 0 | U20: 0 | V20: =+$V$28*'4. Billing Det. for Def-Var'!S21 -> 115830.5118 | W20: ='4. Billing Det. for Def-Var'!T21 -> 9268.236443
B21: ='4. Billing Det. for Def-Var'!B22 -> UNMETERED SCATTERED LOAD | C21: =IFERROR('4. Billing Det. for Def-Var'!D22/'4. Billing Det. for Def-Var'!D$29,"") -> 0.002137776939 | D21: =IFERROR('4. Billing Det. for Def-Var'!F22/'4. Billing Det. for Def-Var'!F$29,"") -> 0.0001231866627 | E21: =IFERROR('4. Billing Det. for Def-Var'!U22/'4. Billing Det. for Def-Var'!U$29,"") -> 0 | F21: =IFERROR('4. Billing Det. for Def-Var'!J22/'4. Billing Det. for Def-Var'!J$29,"") -> 0.002487647899 | G21: 1201.011086 | H21: 0 | I21: -11337.42972 | L21: -1149.25739 | M21: 2051.816392 | N21: 1726.139704 | O21: ='4. Billing Det. for Def-Var'!$L22*O$28 -> 0 | P21: ='4. Billing Det. for Def-Var'!$L22*P$28 -> 0 | Q21: ='4. Billing Det. for Def-Var'!$L22*Q$28 -> 0 | R21: ='4. Billing Det. for Def-Var'!$L22*R$28 -> 0 | S21: ='4. Billing Det. for Def-Var'!$L22*S$28 -> 0 | T21: ='4. Billing Det. for Def-Var'!$L22*T$28 -> 0 | U21: 0 | V21: =+$V$28*'4. Billing Det. for Def-Var'!S22 -> 1258.456255 | W21: ='4. Billing Det. for Def-Var'!T22 -> 0
B22: ='4. Billing Det. for Def-Var'!B23 -> SENTINEL LIGHTING | C22: =IFERROR('4. Billing Det. for Def-Var'!D23/'4. Billing Det. for Def-Var'!D$29,"") -> 8.110322548e-05 | D22: =IFERROR('4. Billing Det. for Def-Var'!F23/'4. Billing Det. for Def-Var'!F$29,"") -> 1.405040756e-06 | E22: =IFERROR('4. Billing Det. for Def-Var'!U23/'4. Billing Det. for Def-Var'!U$29,"") -> 0 | F22: =IFERROR('4. Billing Det. for Def-Var'!J23/'4. Billing Det. for Def-Var'!J$29,"") -> 9.43766699e-05 | G22: 45.56409566 | H22: 0 | I22: -430.1207026 | L22: -43.600658 | M22: 77.84204444 | N22: 65.48648508 | O22: ='4. Billing Det. for Def-Var'!$L23*O$28 -> 0 | P22: ='4. Billing Det. for Def-Var'!$L23*P$28 -> 0 | Q22: ='4. Billing Det. for Def-Var'!$L23*Q$28 -> 0 | R22: ='4. Billing Det. for Def-Var'!$L23*R$28 -> 0 | S22: ='4. Billing Det. for Def-Var'!$L23*S$28 -> 0 | T22: ='4. Billing Det. for Def-Var'!$L23*T$28 -> 0 | U22: 0 | V22: =+$V$28*'4. Billing Det. for Def-Var'!S23 -> 47.74345702 | W22: ='4. Billing Det. for Def-Var'!T23 -> 0
B23: ='4. Billing Det. for Def-Var'!B24 -> STREET LIGHTING | C23: =IFERROR('4. Billing Det. for Def-Var'!D24/'4. Billing Det. for Def-Var'!D$29,"") -> 0.005887048915 | D23: =IFERROR('4. Billing Det. for Def-Var'!F24/'4. Billing Det. for Def-Var'!F$29,"") -> 0.01003848086 | E23: =IFERROR('4. Billing Det. for Def-Var'!U24/'4. Billing Det. for Def-Var'!U$29,"") -> 0 | F23: =IFERROR('4. Billing Det. for Def-Var'!J24/'4. Billing Det. for Def-Var'!J$29,"") -> 0.006850529912 | G23: 3307.366117 | H23: 0 | I23: -31221.21963 | L23: -3164.845847 | M23: 5650.329201 | N23: 4753.47483 | O23: ='4. Billing Det. for Def-Var'!$L24*O$28 -> 0 | P23: ='4. Billing Det. for Def-Var'!$L24*P$28 -> 0 | Q23: ='4. Billing Det. for Def-Var'!$L24*Q$28 -> 0 | R23: ='4. Billing Det. for Def-Var'!$L24*R$28 -> 0 | S23: ='4. Billing Det. for Def-Var'!$L24*S$28 -> 0 | T23: ='4. Billing Det. for Def-Var'!$L24*T$28 -> 0 | U23: 0 | V23: =+$V$28*'4. Billing Det. for Def-Var'!S24 -> 3465.559664 | W23: ='4. Billing Det. for Def-Var'!T24 -> 86523.83987
B24: ='4. Billing Det. for Def-Var'!B25 -> 0 | O24: ='4. Billing Det. for Def-Var'!$L25*O$28 -> 0 | P24: ='4. Billing Det. for Def-Var'!$L25*P$28 -> 0 | Q24: ='4. Billing Det. for Def-Var'!$L25*Q$28 -> 0 | R24: ='4. Billing Det. for Def-Var'!$L25*R$28 -> 0 | S24: ='4. Billing Det. for Def-Var'!$L25*S$28 -> 0 | T24: ='4. Billing Det. for Def-Var'!$L25*T$28 -> 0
B25: ='4. Billing Det. for Def-Var'!B26 -> 0
C28: =SUM(C16:C27) -> 1 | D28: =SUM(D16:D27) -> 1 | E28: =SUM(E16:E27) -> 1 | F28: =SUM(F16:F27) -> 1 | G28: ='3. Continuity Schedule'!CD21 -> 561803.7432 | H28: ='3. Continuity Schedule'!CD22 -> -24050.12908 | I28: ='3. Continuity Schedule'!CD23 -> -4557489.717 | L28: ='3. Continuity Schedule'!CD26 -> -537594.624 | M28: ='3. Continuity Schedule'!CD27 -> 959789.7492 | N28: ='3. Continuity Schedule'!CD28+'4. Billing Det. for Def-Var'!D34 -> 693884.2528 | O28: =TRANSPOSE('3. Continuity Schedule'!CD30:CD37) -> 9.364448488e-10 | P28: 3.637978807e-12 | Q28: 0 | R28: 0.004150000406 | S28: -0.001334500946 | T28: 0.00164013019 | U28: 0.003354679986 | V28: 588675.1944 | W28: =SUM(W16:W27) -> 1281316.792
G29: =SUM(G16:G27)-G28 -> 0 | H29: =SUM(H16:H27)-H28 -> 0 | I29: 0 | J29: 0 | K29: 0 | L29: 0 | M29: 0 | N29: 0 | O29: -9.364448488e-10 | P29: -3.637978807e-12 | Q29: 0 | R29: -0.004150000406 | S29: 0.001334500946 | T29: -0.00164013019 | U29: -0.003354679986 | V29: 0 | W29: 0
B32: ** Used to allocate Account 1551 as this account records the variances arising from the Smart Metering Entity Charges to Residential and GS<50 customers.

Sheet 6. GA Calculation
A1: Back to Index
B2: INCENTIVE REGULATION MODEL FOR 2018 FILERS
B13: The purpose of this tab is to calculate the GA rate riders for all current Class B customers of the distributor. Identify the total billed consumption for former Class B customers prior to becoming Class A customers in Column G. Effective January 2017, the billing determinant and all rate riders for the disposition of GA balances will be calculated on an energy basis (kWhs) regardless of the billing determinant used for distribution rates for the particular class (see Chapter 3, Filing Requirements, section 3.2.5.2)
C14: Total Metered Non-RPP consumption minus WMP | E14: Total Metered Class A Consumption in 2016 (partial and/or full year Class A customers)* | G14: Total Metered Consumption for New Class A customer(s) in the period prior to becoming Class A (i.e. Jan. 1 - June 30, 2016) | H14: Total Metered Consumption for New Class B customer(s) in the period after becoming Class B (i.e. Jul 1 - Dec 31, 2016) | I14: Metered Consumption for Current Class B Customers (Non-RPP consumption LESS WMP, Class A and new Class A's former Class B consumption if applicable) | K14: % of total kWh | L14: Total GA $ allocated to Current Class B Customers | M14: GA Rate Rider | O14: Revenue Reconciliation | P14: Variance
C15: kWh | D15: kW | E15: kWh | F15: kW | G15: kWh | H15: kWh | I15: kWh | J15: kW
B17: ='4. Billing Det. for Def-Var'!B17 -> RESIDENTIAL | C17: ='4. Billing Det. for Def-Var'!F17-'4. Billing Det. for Def-Var'!H17 -> 90346673 | I17: =C17-E17-G17-H17 -> 90346673 | K17: =IFERROR(I17/I$29,"") -> 0.05466997971 | L17: =IFERROR(L$29*K17,"") -> -259260.1915 | M17: =IFERROR(L17/I17,"") -> -0.002869615259 | N17: kwh | O17: =ROUND(M17,4)*I17 -> -262005.3517 | P17: =L17-O17 -> 2745.160229
B18: ='4. Billing Det. for Def-Var'!B18 -> GENERAL SERVICE LESS THAN 50 KW | C18: ='4. Billing Det. for Def-Var'!F18-'4. Billing Det. for Def-Var'!H18 -> 103898341 | I18: =C18-E18-G18-H18 -> 103898341 | K18: =IFERROR(I18/I$29,"") -> 0.06287027519 | L18: =IFERROR(L$29*K18,"") -> -298148.2648 | M18: =IFERROR(L18/I18,"") -> -0.002869615259 | N18: kwh | O18: =ROUND(M18,4)*I18 -> -301305.1889 | P18: =L18-O18 -> 3156.924147
B19: ='4. Billing Det. for Def-Var'!B19 -> GENERAL SERVICE 50 TO 4,999 KW | C19: ='4. Billing Det. for Def-Var'!F19-'4. Billing Det. for Def-Var'!H19 -> 1599709644 | E19: =SUM('[11]Summary Class A & WMP'!$J$17:$J$36)+SUM('[11]Summary Class A & WMP'!$J$42:$J$47) -> 159817236.4 | G19: ='[11]ICI Expansion'!$C$7 -> 26284843.39 | H19: ='[11]ICI Expansion'!$D$13 -> 12686403.13 | I19: =C19-E19-G19-H19 -> 1400921161 | K19: 0.8477161239 | L19: =IFERROR(L$29*K19,"") -> -4020104.741 | M19: =IFERROR(L19/I19,"") -> -0.002869615259 | N19: kwh | O19: -4062671.367 | P19: 42566.62617
B20: ='4. Billing Det. for Def-Var'!B20 -> LARGE USE (1) | C20: ='4. Billing Det. for Def-Var'!F20-'4. Billing Det. for Def-Var'!H20 -> 213955306 | E20: =SUM('[11]Summary Class A & WMP'!$K$17:$K$36)+SUM('[11]Summary Class A & WMP'!$K$42:$K$47) -> 188567617 | I20: 25387688.97 | K20: 0.01536243001 | L20: -72852.89966 | M20: -0.002869615259 | N20: kwh | O20: -73624.298 | P20: 771.3983454
B21: ='4. Billing Det. for Def-Var'!B21 -> LARGE USE (2) | C21: ='4. Billing Det. for Def-Var'!F21-'4. Billing Det. for Def-Var'!H21 -> 350315954.6 | E21: =SUM('[11]Summary Class A & WMP'!$L$17:$L$36)+SUM('[11]Summary Class A & WMP'!$L$42:$L$47) -> 350315954.6 | I21: 0.001089453697 | K21: =IFERROR(I21/I$29,"") -> 6.592429975e-13 | L21: -3.126312954e-06 | M21: 0 | N21: kwh | O21: 0 | P21: -3.126312954e-06
B22: ='4. Billing Det. for Def-Var'!B22 -> UNMETERED SCATTERED LOAD | C22: ='4. Billing Det. for Def-Var'!F22-'4. Billing Det. for Def-Var'!H22 -> 388224 | I22: 388224 | K22: 0.0002349195327 | L22: -1114.053514 | M22: -0.002869615259 | N22: kwh | O22: -1125.8496 | P22: 11.79608556
B23: ='4. Billing Det. for Def-Var'!B23 -> SENTINEL LIGHTING | C23: ='4. Billing Det. for Def-Var'!F23-'4. Billing Det. for Def-Var'!H23 -> 4428 | I23: 4428 | K23: 2.679441999e-06 | L23: -12.70665637 | M23: -0.002869615259 | N23: kwh | O23: -12.8412 | P23: 0.1345436317
B24: ='4. Billing Det. for Def-Var'!B24 -> STREET LIGHTING | C24: ='4. Billing Det. for Def-Var'!F24-'4. Billing Det. for Def-Var'!H24 -> 31636372.86 | I24: 31636372.86 | K24: 0.01914359218 | L24: -90784.21832 | M24: -0.002869615259 | N24: kwh | O24: -91745.4813 | P24: 961.2629851
C29: =SUM(C17:C28) -> 2390254943 | D29: =SUM(D17:D28) -> 0 | E29: 698700808 | F29: 0 | G29: 26284843.39 | H29: 12686403.13 | I29: 1652582889 | J29: 0 | K29: 1 | L29: ='6B. GA Allocation_new Class B'!D28 -> -4742277.075 | O29: =SUM(O17:O28) -> -4792490.378 | P29: =SUM(P17:P28) -> 50213.3025
L30: from Sheet 6B
O31: NOTE: if rate rider is at 5 decimal places, then the balance dispostion is in full
B32: *For new Class A customers (who became Class A in 2016), add their consumption only related to July to December period.

Sheet 6A. GA Allocation_Class A
A1: Back to Index
B2: INCENTIVE REGULATION MODEL FOR 2018 FILERS
B12: This tab allocates the GA balance to former Class B customers who contributed to the current GA balance but are now Class A customers. The tables below calculate specific amounts for each customer who made the change. Consistent with both decisions for 2016 rates and EDDVAR, distributors are generally expected to settle the amount through 12 equal adjustments to bills. A one-time settlement is acceptable if the affected customer has expressed a clear preference for this approach. (see Filing Requirements section 3.2.5.2)
B14: Year of Group 1 Account Balance Last Disposed | C14: 2015 | D14: (e.g. If in the 2017 EDR process, you received approval to dispose the GA variance account balance as of December 31, 2014, please enter 2014 in cell C16.)
B16: Allocation of total Non-RPP consumption (kWh) between Class B and New Class A (Former Class B) customers
D17: Total | E17: 2016 | F17: 2015 | G17: 2014 | H17: 2013 | I17: 2012
B18: Total Class B Consumption for Years Since Last Disposition (Non-RPP consumption LESS WMP and Class A) | C18: A | D18: =SUM(E18:I18) -> 1691554135 | E18: ='6. GA Calculation'!C29-'6. GA Calculation'!E29 -> 1691554135 | F18: 0
B19: New Class A Customer(s)' Former Class B Consumption | C19: B | D19: =SUM(E19:I19) -> 30440304.39 | E19: =E44 -> 30440304.39 | F19: 0 | G19: =G44 -> 0 | H19: =H44 -> 0 | I19: =I44 -> 0
B20: Portion of Consumption of Former Class B Customers | C20: C=B/A | D20: =IFERROR(+D19/D18,0) -> 0.01799546568
B23: Allocation of Total GA Balance $
B25: Total GA Balance | C25: D | D25: ='3. Continuity Schedule'!CD29 -> -4866346.108
B26: New Class A Customer(s)' Former Class B Portion of GA Balance | C26: E=C*D | D26: =+D20*D25 -> -87572.16438
B27: GA Balance to be disposed to Current Class B Customers (if no Class A to Class B Transition Customers) | C27: F=D-E | D27: =+D25-D26 -> -4778773.944 | O27: s
B29: Allocation of GA Balances to Former Class B Customers
B31: # of Former Class B customer(s) | E31: 2 | F31: 9
B32: Customer | D32: Total Metered kWh Consumption for each new Class A customer for the period prior to becoming Class A | E32: Metered kWh Consumption for each new Class A customer for the period prior to becoming Class A in 2016 | F32: Metered kWh Consumption for each new Class A customer for the period prior to becoming Class A in 2015 | G32: Metered kWh Consumption for each new Class A customer for the period prior to becoming Class A in 2014 | H32: Metered kWh Consumption for each new Class A customer for the period prior to becoming Class A in 2013 | I32: Metered kWh Consumption for each new Class A customer for the period prior to becoming Class A in 2012 | J32: % of kWh | K32: Customer specific GA allocation for the period prior to becoming Class A | L32: Monthly Equal Payments
B33: Customer 1 | D33: =SUM(E33:I33) -> 22121113.68 | E33: ='[11]ICI Expansion'!$C$5 -> 22121113.68 | J33: =IFERROR(+D33/$D$44,0) -> 0.7267047463 | K33: =+J33*$D$26 -> -63639.10749 | L33: =+K33/12 -> -5303.258958
B34: Customer 2 | D34: 4163729.712 | E34: ='[11]ICI Expansion'!$C$6 -> 4163729.712 | J34: 0.1367834453 | K34: =+J34*$D$26 -> -11978.42236 | L34: =+K34/12 -> -998.2018634
B35: Customer 3 | D35: 4155461 | E35: ='[12]ICI Expansion'!$C$7 -> 4155461 | J35: 0.1365118084 | K35: -11954.63452 | L35: -996.2195436
B36: Customer 4 | D36: 0 | J36: 0 | K36: 0 | L36: 0
B37: Customer 5 | D37: 0 | J37: 0 | K37: 0 | L37: 0
B38: Customer 6 | D38: 0 | J38: 0 | K38: 0 | L38: 0
B39: Customer 7 | D39: 0 | J39: 0 | K39: 0 | L39: 0
B40: Customer 8 | D40: 0 | J40: 0 | K40: =+J40*$D$26 -> 0 | L40: =+K40/12 -> 0
B41: Customer 9 | D41: 0 | J41: 0 | K41: 0 | L41: 0
B42: Customer 10 | D42: 0 | J42: 0 | K42: 0 | L42: 0
B43: Customer 11 | D43: 0 | J43: 0 | K43: 0 | L43: 0
B44: Total | D44: =SUM(D33:D43) -> 30440304.39 | E44: =SUM(E33:E43) -> 30440304.39 | F44: =SUM(F33:F43) -> 0 | G44: =SUM(G33:G39) -> 0 | H44: 0 | I44: 0 | J44: =SUM(J33:J43) -> 1 | K44: =SUM(K33:K43) -> -87572.16438

Sheet 6B. GA Allocation_new Class B
A1: Back to Index
B2: INCENTIVE REGULATION MODEL FOR 2018 FILERS
B12: This tab allocates the GA balance to former Class A customers who contributed to the current Class B GA balance once switched to Class B customers. The tables below calculate specific amounts for each customer who made the transition. Consistent with both decisions for 2016 rates and EDDVAR, distributors are generally expected to settle the amount through 12 equal adjustments to bills. A one-time settlement is acceptable if the affected customer has expressed a clear preference for this approach. (see Filing Requirements section 3.2.5.2)
B14: Year of Group 1 Account Balance Last Disposed | C14: 2015 | D14: (e.g. If in the 2017 EDR process, you received approval to dispose the GA variance account balance as of December 31, 2014, please enter 2014 in cell C16.)
B16: Allocation of total Non-RPP consumption (kWh) between Class B and New Class B (Former Class A) customers
D17: Total | E17: 2016 | F17: 2015 | G17: 2014 | H17: 2013 | I17: 2012
B18: Total Class B Consumption for Years Since Last Disposition (Non-RPP consumption LESS WMP and Class A) | C18: A | D18: =SUM(E18:I18) -> 1691554135 | E18: ='6. GA Calculation'!C29-'6. GA Calculation'!E29 -> 1691554135
B19: New Class B Customer(s)' Consumption | C19: B | D19: =SUM(E19:I19) -> 12686403.13 | E19: =E44 -> 12686403.13 | F19: =F44 -> 0 | G19: =G44 -> 0 | H19: =H44 -> 0 | I19: =I44 -> 0
B20: Portion of Consumption of New Class B Customers | C20: C=B/A | D20: =IFERROR(+D19/D18,0) -> 0.0074998505
B23: Allocation of Total GA Balance $
B25: Total GA Calss B Balance adjusted for Class A | C25: D | D25: ='6A. GA Allocation_Class A'!D25 -> -4866346.108
B26: New Class B Customer(s)' Former Class A Portion of GA Balance attributable to Class B | C26: E=C*D | D26: =+D20*D25 -> -36496.86829
B27: New Class A Customer(s)' Former Class B Portion of GA Balance | C27: F=Sheet 6A | D27: ='6A. GA Allocation_Class A'!D26 -> -87572.16438
B28: GA Balance to be disposed to Current Class B Customers | C28: G=D-E-F | D28: =+D25-D26-D27 -> -4742277.075 | E28: Input into Sheet 6. GA Calculation | O28: s
B30: Allocation of GA Balances to Former Class A Customers
B31: # of Former Class B customer(s) | E31: 2 | F31: 9
B32: Customer | D32: Total Metered kWh Consumption for each new Class B customer for the period after becoming Class B | E32: Metered kWh Consumption for each new Class B customer for the period after becoming Class B in 2016 | F32: Metered kWh Consumption for each new Class B customer for the period prior to becoming Class B in 2015 | G32: Metered kWh Consumption for each new Class B customer for the period prior to becoming Class B in 2014 | H32: Metered kWh Consumption for each new Class B customer for the period prior to becoming Class B in 2013 | I32: Metered kWh Consumption for each new Class B customer for the period prior to becoming Class B in 2012 | J32: % of kWh | K32: Customer specific GA allocation for the period after becoming Class B | L32: Monthly Equal Payments
B33: Customer 1 | D33: =SUM(E33:I33) -> 4761244.013 | E33: ='[11]ICI Expansion'!$D$11 -> 4761244.013 | J33: =IFERROR(+D33/$D$44,0) -> 0.3753029101 | K33: =+J33*$D$26 -> -13697.38088 | L33: =+K33/12 -> -1141.448407
B34: Customer 2 | D34: =SUM(E34:I34) -> 7925159.116 | E34: ='[11]ICI Expansion'!$D$12 -> 7925159.116 | J34: 0.6246970899 | K34: =+J34*$D$26 -> -22799.48741 | L34: =+K34/12 -> -1899.957284
J35: 0 | K35: 0 | L35: 0
J36: 0 | K36: 0 | L36: 0
J37: 0 | K37: 0 | L37: 0
J38: 0 | K38: 0 | L38: 0
J39: 0 | K39: 0 | L39: 0
J40: 0 | K40: 0 | L40: 0
J41: 0 | K41: 0 | L41: 0
J42: 0 | K42: 0 | L42: 0
J43: 0 | K43: 0 | L43: 0
B44: Total | D44: =SUM(D33:D43) -> 12686403.13 | E44: =SUM(E33:E43) -> 12686403.13 | F44: =SUM(F33:F43) -> 0 | G44: =SUM(G33:G39) -> 0 | H44: 0 | I44: 0 | J44: =SUM(J33:J43) -> 1 | K44: =SUM(K33:K43) -> -36496.86829

Sheet 7. CBR Calculation
A1: Back to Index
B2: INCENTIVE REGULATION MODEL FOR 2018 FILERS
B13: The purpose of this tab is to calculate the CBR rate riders for all current Class B customers of the distributor. Identify and input the total billed consumption for former Class B customers prior to becoming Class A customers in Column H. Identify and input the total billed consumption for former Class A customers after becoming Class B customers in Column H.
B15: Account 1580
B16: Variance WMS – Sub-account CBR Class A | C16: ='3. Continuity Schedule'!CD24 -> -0.02022000003
B17: Variance WMS – Sub-account CBR Class B | C17: ='3. Continuity Schedule'!CD25 -> -188843.4203
C19: Total Metered LESS WMP | E19: Total Metered Class A Consumption/Demand in 2016 (partial and/or full year Class A customers)* | G19: Total Metered Consumption/Demand for New Class A customer(s) in the period prior to becoming Class A (i.e. Jan 1 - Jun 30, 2016) | I19: Total Metered Consumption for New Class B customer(s) in the period after becoming Class B (i.e. Jul 1 - Dec 31, 2016) | K19: Metered Consumption for Current Class B Customers (metered consumption/demand LESS WMP, Class A and new Class A's former Class B, if applicable) | M19: % of total kWh | N19: Total CBR $ allocated to Current Class B Customers | O19: CBR Rate Rider | Q19: Revenue Reconciliation | R19: Variance
C20: kWh | D20: kW | E20: kWh | F20: kW | G20: kWh | H20: kW | I20: kWh | J20: kW | K20: kWh | L20: kW
B22: ='4. Billing Det. for Def-Var'!B17 -> RESIDENTIAL | C22: ='4. Billing Det. for Def-Var'!D17-'4. Billing Det. for Def-Var'!H17 -> 1647803823 | D22: ='4. Billing Det. for Def-Var'!E17-'4. Billing Det. for Def-Var'!I17 -> 0 | E22: ='6. GA Calculation'!E17 -> 0 | G22: ='6. GA Calculation'!G17 -> 0 | I22: ='6. GA Calculation'!H17 -> 0 | K22: =C22-E22-G22-I22 -> 1647803823 | L22: =D22-F22-H22-J22 -> 0 | M22: =IFERROR(K22/K$34,"") -> 0.4210306281 | N22: =IFERROR(N$34*M22,"") -> -78641.36897 | O22: =IFERROR(N22/K22,"") -> -4.772495844e-05 | P22: kwh | Q22: =ROUND(O22,5)*K22 -> -82390.19116 | R22: =N22-Q22 -> 3748.822187
B23: ='4. Billing Det. for Def-Var'!B18 -> GENERAL SERVICE LESS THAN 50 KW | C23: ='4. Billing Det. for Def-Var'!D18-'4. Billing Det. for Def-Var'!H18 -> 595148676.1 | D23: ='4. Billing Det. for Def-Var'!E18-'4. Billing Det. for Def-Var'!I18 -> 0 | E23: ='6. GA Calculation'!E18 -> 0 | G23: ='6. GA Calculation'!G18 -> 0 | I23: ='6. GA Calculation'!H18 -> 0 | K23: =C23-E23-G23-I23 -> 595148676.1 | L23: =D23-F23-H23-J23 -> 0 | M23: =IFERROR(K23/K$34,"") -> 0.1520665369 | N23: =IFERROR(N$34*M23,"") -> -28403.44583 | O23: =IFERROR(N23/K23,"") -> -4.772495844e-05 | P23: kwh | Q23: =ROUND(O23,5)*K23 -> -29757.43381 | R23: =N23-Q23 -> 1353.987975
B24: ='4. Billing Det. for Def-Var'!B19 -> GENERAL SERVICE 50 TO 4,999 KW | C24: ='4. Billing Det. for Def-Var'!D19-'4. Billing Det. for Def-Var'!H19 -> 1800312216 | D24: ='4. Billing Det. for Def-Var'!E19-'4. Billing Det. for Def-Var'!I19 -> 4875557.656 | E24: ='6. GA Calculation'!E19 -> 159817236.4 | F24: =SUM('[11]Summary Class A & WMP'!$F$17:$F$26)+SUM('[11]Summary Class A & WMP'!$F$42:$F$45) -> 343690.2216 | G24: ='6. GA Calculation'!G19 -> 26284843.39 | H24: =+'[11]ICI Expansion'!$C$21 -> 59945.72067 | I24: ='6. GA Calculation'!H19 -> 12686403.13 | J24: =+'[11]ICI Expansion'!$D$27 -> 26117.41671 | K24: 1601523733 | L24: 4445804.297 | M24: 0.4092055945 | N24: -76432.65358 | O24: =IFERROR(N24/L24,"") -> -0.01719208685 | P24: kW | Q24: =ROUND(O24,5)*L24 -> -76423.37587 | R24: -9.27771284
B25: ='4. Billing Det. for Def-Var'!B20 -> LARGE USE (1) | C25: ='4. Billing Det. for Def-Var'!D20-'4. Billing Det. for Def-Var'!H20 -> 213955306 | D25: ='4. Billing Det. for Def-Var'!E20-'4. Billing Det. for Def-Var'!I20 -> 391406.8939 | E25: ='6. GA Calculation'!E20 -> 188567617 | F25: =SUM('[11]Summary Class A & WMP'!$G$27:$G$30) -> 344714.4221 | G25: ='6. GA Calculation'!G20 -> 0 | H25: 0 | I25: ='6. GA Calculation'!H20 -> 0 | J25: 0 | K25: 25387688.97 | L25: 46692.47173 | M25: 0.006486812617 | N25: -1211.626401 | O25: =IFERROR(N25/L25,"") -> -0.02594907393 | P25: kW | Q25: =ROUND(O25,5)*L25 -> -1211.669641 | R25: 0.04324065091
B26: ='4. Billing Det. for Def-Var'!B21 -> LARGE USE (2) | C26: ='4. Billing Det. for Def-Var'!D21-'4. Billing Det. for Def-Var'!H21 -> 350315954.6 | D26: ='4. Billing Det. for Def-Var'!E21-'4. Billing Det. for Def-Var'!I21 -> 778455.1512 | E26: ='6. GA Calculation'!E21 -> 350315954.6 | F26: =SUM('[11]Summary Class A & WMP'!$H$31:$H$34) -> 778455.2059 | G26: ='6. GA Calculation'!G21 -> 0 | I26: ='6. GA Calculation'!H21 -> 0 | K26: 0.001089453697 | L26: -0.05472999997 | M26: 2.783664948e-13 | N26: -5.199413242e-08 | O26: =IFERROR(N26/L26,"") -> 9.500115557e-07 | P26: kW | Q26: =ROUND(O26,5)*L26 -> 0 | R26: -5.199413242e-08
B27: ='4. Billing Det. for Def-Var'!B22 -> UNMETERED SCATTERED LOAD | C27: ='4. Billing Det. for Def-Var'!D22-'4. Billing Det. for Def-Var'!H22 -> 11571071.96 | D27: ='4. Billing Det. for Def-Var'!E22-'4. Billing Det. for Def-Var'!I22 -> 0 | E27: ='6. GA Calculation'!E22 -> 0 | G27: ='6. GA Calculation'!G22 -> 0 | I27: ='6. GA Calculation'!H22 -> 0 | K27: 11571071.96 | L27: 0 | M27: 0.002956526514 | N27: -552.2289282 | O27: =IFERROR(N27/K27,"") -> -4.772495844e-05 | P27: kWh | Q27: =ROUND(O27,5)*K27 -> -578.5535978 | R27: 26.32466964
B28: ='4. Billing Det. for Def-Var'!B23 -> SENTINEL LIGHTING | C28: ='4. Billing Det. for Def-Var'!D23-'4. Billing Det. for Def-Var'!H23 -> 438984.6484 | D28: ='4. Billing Det. for Def-Var'!E23-'4. Billing Det. for Def-Var'!I23 -> 1213.423076 | E28: ='6. GA Calculation'!E23 -> 0 | G28: ='6. GA Calculation'!G23 -> 0 | I28: ='6. GA Calculation'!H23 -> 0 | K28: 438984.6484 | L28: 1213.423076 | M28: =IFERROR(K28/K$34,"") -> 0.0001121650403 | N28: -20.9505241 | O28: =IFERROR(N28/L28,"") -> -0.01726563843 | P28: kW | Q28: =ROUND(O28,5)*L28 -> -20.95581652 | R28: 0.005292423855
B29: ='4. Billing Det. for Def-Var'!B24 -> STREET LIGHTING | C29: ='4. Billing Det. for Def-Var'!D24-'4. Billing Det. for Def-Var'!H24 -> 31864627.86 | D29: ='4. Billing Det. for Def-Var'!E24-'4. Billing Det. for Def-Var'!I24 -> 88666.23 | E29: ='6. GA Calculation'!E24 -> 0 | G29: ='6. GA Calculation'!G24 -> 0 | I29: ='6. GA Calculation'!H24 -> 0 | K29: 31864627.86 | L29: 88666.23 | M29: 0.008141736348 | N29: -1520.73804 | O29: =IFERROR(N29/L29,"") -> -0.01715126537 | P29: kW | Q29: =ROUND(O29,5)*L29 -> -1520.625844 | R29: -0.1121956619
C34: =SUM(C22:C33) -> 4651410660 | D34: =SUM(D22:D33) -> 6135299.354 | E34: 698700808 | F34: 1466859.85 | G34: 26284843.39 | H34: 59945.72067 | I34: =SUM(I22:I33) -> 12686403.13 | J34: 26117.41671 | K34: 3913738606 | L34: 4582376.367 | M34: 1 | N34: ='7B. CBR Allocation_new Class B'!D28 -> -186783.0123 | Q34: =SUM(Q22:Q33) -> -191902.8057 | R34: =SUM(R22:R33) -> 5119.793456
N35: from Sheet 7B
Q36: NOTE: if rate rider is at 5 decimal places, then the balance dispostion is in full
B37: *For new Class A customers (who became Class A in 2016), add their consumption only related to July to December period.

Sheet 7A. CBR Allocation_Class A
A1: Back to Index
B2: INCENTIVE REGULATION MODEL FOR 2018 FILERS
B12: This tab allocates the CBR balance to former Class B customers who contributed to the current CBR balance but are now Class A customers. The tables below calculate specific amounts for each customer who made the change. Consistent with both decisions for 2016 rates and EDDVAR, distributors are generally expected to settle the amount through 12 equal adjustments to bills. A one-time settlement is acceptable if the affected customer has expressed a clear preference for this approach. (see Filing Requirements section 3.2.5.2)
B14: Year of Group 1 Account Balance Last Disposed | C14: 2015
B16: Allocation of total Non-RPP consumption (kWh) between Class B and New Class A (Former Class B) customers
D17: Total | E17: 2016
B18: Total MeteredConsumption for Years Since Last Disposition (consumption LESS WMP and Class A) | C18: A | D18: =SUM(E18:I18) -> 3952709852 | E18: ='7. CBR Calculation'!C34-'7. CBR Calculation'!E34 -> 3952709852
B19: New Class A Customer(s)' Former Class B Consumption | C19: B | D19: =SUM(E19:I19) -> 30440304.39 | E19: =E44 -> 30440304.39
B20: Portion of Consumption of Former Class B Customers | C20: C=B/A | D20: =IFERROR(+D19/D18,0) -> 0.007701122908
B23: Allocation of Total CBR Class B Balance $
B25: Total CBR-Class B Balance | C25: D | D25: ='7. CBR Calculation'!C17 -> -188843.4203
B26: New Class A Customer(s)' Former Class B Portion of CBR-Class B Balance | C26: E=C*D | D26: =+D20*D25 -> -1454.30639
B27: CBR-Class B Balance to be disposed to Current Class B Customers (if no Class A to Class B Transition Customers) | C27: F=D-E | D27: =+D25-D26 -> -187389.1139 | O27: s
B29: Allocation of CBR Class B Balances to Former Class B Customers
B31: # of Former Class B customer(s) | E31: 2
B32: Customer | D32: Total Metered kWh Consumption for each new Class A customer for the period prior to becoming Class A | E32: Metered kWh Consumption for each new Class A customer for the period prior to becoming Class A in 2016 | J32: % of kWh | K32: Customer specific CBR-Class B allocation for the period prior to becoming Class A | L32: Monthly Equal Payments
B33: Customer 1 | D33: =SUM(E33:I33) -> 22121113.68 | E33: ='[11]ICI Expansion'!$C$5 -> 22121113.68 | J33: =IFERROR(+D33/$D$44,0) -> 0.7267047463 | K33: =+J33*$D$26 -> -1056.851356 | L33: =+K33/12 -> -88.07094634
B34: Customer 2 | D34: =SUM(E34:I34) -> 4163729.712 | E34: ='[11]ICI Expansion'!$C$6 -> 4163729.712 | J34: 0.1367834453 | K34: =+J34*$D$26 -> -198.9250386 | L34: =+K34/12 -> -16.57708655
B35: Customer 3 | D35: 4155461 | E35: ='[12]ICI Expansion'!$C$7 -> 4155461 | J35: 0.1365118084 | K35: -198.5299952 | L35: -16.54416627
B36: Customer 4 | D36: 0 | J36: 0 | K36: 0 | L36: 0
B37: Customer 5 | D37: 0 | J37: 0 | K37: 0 | L37: 0
B38: Customer 6 | D38: 0 | J38: 0 | K38: 0 | L38: 0
B39: Customer 7 | D39: 0 | J39: 0 | K39: 0 | L39: 0
B40: Customer 8 | D40: 0 | J40: 0 | K40: 0 | L40: 0
B41: Customer 9 | D41: 0 | J41: 0 | K41: 0 | L41: 0
B42: Customer 10 | D42: 0 | J42: 0 | K42: 0 | L42: 0
B43: Customer 11 | D43: 0 | J43: 0 | K43: 0 | L43: 0
B44: Total | D44: =SUM(D33:D43) -> 30440304.39 | E44: =SUM(E33:E43) -> 30440304.39 | F44: =SUM(F33:F43) -> 0 | G44: =SUM(G33:G39) -> 0 | H44: 0 | I44: 0 | J44: =SUM(J33:J43) -> 1 | K44: =SUM(K33:K43) -> -1454.30639

Sheet 7B. CBR Allocation_new Class B
A1: Back to Index
B2: INCENTIVE REGULATION MODEL FOR 2018 FILERS
B12: This tab allocates the CBR-Class B balance to former Class A customers who contributed to the current CBR-Class B balance once switched to Class B customers. The tables below calculate specific amounts for each customer who made the transition. Consistent with both decisions for 2016 rates and EDDVAR, distributors are generally expected to settle the amount through 12 equal adjustments to bills. A one-time settlement is acceptable if the affected customer has expressed a clear preference for this approach. (see Filing Requirements section 3.2.5.2)
B14: Year of Group 1 Account Balance Last Disposed | C14: 2015
B16: Allocation of total Non-RPP consumption (kWh) between Class B and New Class B (Former Class A) customers
D17: Total | E17: 2016 | F17: 2015 | G17: 2014 | H17: 2013 | I17: 2012
B18: Total Class B Consumption for Years Since Last Disposition (Non-RPP consumption LESS WMP and Class A) | C18: A | D18: =SUM(E18:I18) -> 3952709852 | E18: ='7. CBR Calculation'!C34-'7. CBR Calculation'!E34 -> 3952709852
B19: New Class B Customer(s)' Consumption | C19: B | D19: =SUM(E19:I19) -> 12686403.13 | E19: =E45 -> 12686403.13 | F19: =F45 -> 0 | G19: =G45 -> 0 | H19: =H45 -> 0 | I19: =I45 -> 0
B20: Portion of Consumption of New Class B Customers | C20: C=B/A | D20: =IFERROR(+D19/D18,0) -> 0.003209545756
B23: Allocation of Total CBR-Class B Balance $
B25: Total CBR-Class B Balance adjusted for Class A | C25: D | D25: ='7. CBR Calculation'!C17 -> -188843.4203
B26: New Class B Customer(s)' Former Class A Portion of CBR-Class B Balance attributable to Class B | C26: E=C*D | D26: =+D20*D25 -> -606.101598
B27: New Class A Customer(s)' Former Class B Portion of CBR-Class B Balance | C27: F=Sheet 6A | D27: ='7A. CBR Allocation_Class A'!D26 -> -1454.30639
B28: CBR-Class B Balance to be disposed to Current Class B Customers | C28: G=D-E-F | D28: =+D25-D26-D27 -> -186783.0123 | E28: Input into Sheet 7. CBR Calculation | O28: s
B30: Allocation of CBR-Class B Balances to Former Class A Customers
B32: # of Former Class B customer(s) | E32: 2
B33: Customer | D33: Total Metered kWh Consumption for each new Class B customer for the period after becoming Class B | E33: Metered kWh Consumption for each new Class B customer for the period after becoming Class B in 2016 | J33: % of kWh | K33: Customer specific CBR-Class B allocation for the period after becoming Class B | L33: Monthly Equal Payments
B34: Customer 1 | D34: =SUM(E34:I34) -> 4761244.013 | E34: ='[11]ICI Expansion'!$D$11 -> 4761244.013 | J34: =IFERROR(+D34/$D$45,0) -> 0.3753029101 | K34: =+J34*$D$26 -> -227.4716936 | L34: =+K34/12 -> -18.95597446
B35: Customer 2 | D35: =SUM(E35:I35) -> 7925159.116 | E35: ='[11]ICI Expansion'!$D$12 -> 7925159.116 | J35: 0.6246970899 | K35: =+J35*$D$26 -> -378.6299044 | L35: =+K35/12 -> -31.55249204
J36: 0 | K36: 0 | L36: 0
J37: 0 | K37: 0 | L37: 0
J38: 0 | K38: 0 | L38: 0
J39: 0 | K39: 0 | L39: 0
J40: 0 | K40: 0 | L40: 0
J41: 0 | K41: 0 | L41: 0
J42: 0 | K42: 0 | L42: 0
J43: 0 | K43: 0 | L43: 0
J44: 0 | K44: 0 | L44: 0
B45: Total | D45: =SUM(D34:D44) -> 12686403.13 | E45: =SUM(E34:E44) -> 12686403.13 | F45: =SUM(F34:F44) -> 0 | G45: =SUM(G34:G40) -> 0 | H45: 0 | I45: 0 | J45: =SUM(J34:J44) -> 1 | K45: =SUM(K34:K44) -> -606.101598

Sheet 8. Calculation of Def-Var RR
A1: Back to Index
B2: INCENTIVE REGULATION MODEL FOR 2018 FILERS
B11: Input required at cell D13 only. This workshseet calculates rate riders related to the Deferral/Variance Account Disposition (if applicable) and rate riders for Account 1568. Rate Riders will not be generated for the microFIT class.
B12: Default Rate Rider Recovery Period (in months) | D12: 12
B13: Proposed Rate Rider Recovery Period (in months) | D13: 12 | E13: =IF(D13>0, "Rate Rider Recovery to be used below", "If no rate rider recovery period is proposed then the default recovery period of 12 months will be used") -> Rate Rider Recovery to be used below
D15: Total Metered kWh | E15: Metered kW or kVA | F15: Total Metered kWh less WMP consumption | G15: Total Metered kW less WMP consumption | H15: Allocation of Group 1 Account Balances to All Classes 2 | I15: Allocation of Group 1 Account Balances to Non-WMP Classes Only (if Applicable) 2 | J15: Deferral/Variance Account Rate Rider 2 | K15: Deferral/Variance Account Rate Rider for Non-WMP (if applicable) 2 | L15: Account 1568 Rate Rider
B16: Rate Class | C16: Unit | M16: Revenue Reconciliation: | O16: Revenue Reconcilation 1
B17: ='4. Billing Det. for Def-Var'!B17 -> RESIDENTIAL | C17: ='4. Billing Det. for Def-Var'!C17 -> kWh | D17: ='4. Billing Det. for Def-Var'!D17 -> 1647803823 | E17: ='4. Billing Det. for Def-Var'!E17 -> 0 | F17: ='4. Billing Det. for Def-Var'!J17 -> 1647803823 | G17: ='4. Billing Det. for Def-Var'!K17 -> 0 | H17: =SUM('5. Allocating Def-Var Balances'!G16:V16)-I17 -> -912125.0795 | J17: =IF(ISERROR(H17/D17),0,IF(OR(ISBLANK(D$13), OR(D$13=0, D$13="")), H17/D17/(D$12/12), H17/D17/(D$13/12))) -> -0.0005535398491 | K17: =IF(ISERROR(I17/F17),0,IF(OR(ISBLANK(D$13), OR(D$13=0, D$13="")), I17/F17/(D$12/12), I17/F17/(D$13/12))) -> 0 | L17: =IF(ISERROR('4. Billing Det. for Def-Var'!T17/D17), 0, IF(OR(ISBLANK(D$13), OR(D$13=0, D$13="")), ('4. Billing Det. for Def-Var'!T17/D17)/(D$12/12), ('4. Billing Det. for Def-Var'!T17/D17)/(D$13/12))) -> 0.0002664880631 | M17: =J17*D17 -> -912125.0795 | N17: =K17*G17 -> 0
B18: ='4. Billing Det. for Def-Var'!B18 -> GENERAL SERVICE LESS THAN 50 KW | C18: ='4. Billing Det. for Def-Var'!C18 -> kWh | D18: ='4. Billing Det. for Def-Var'!D18 -> 595148676.1 | E18: ='4. Billing Det. for Def-Var'!E18 -> 0 | F18: ='4. Billing Det. for Def-Var'!J18 -> 595148676.1 | G18: ='4. Billing Det. for Def-Var'!K18 -> 0 | H18: =SUM('5. Allocating Def-Var Balances'!G17:V17)-I18 -> -323290.913 | J18: =IF(ISERROR(H18/D18),0,IF(OR(ISBLANK(D$13), OR(D$13=0, D$13="")), H18/D18/(D$12/12), H18/D18/(D$13/12))) -> -0.0005432103372 | K18: =IF(ISERROR(I18/F18),0,IF(OR(ISBLANK(D$13), OR(D$13=0, D$13="")), I18/F18/(D$12/12), I18/F18/(D$13/12))) -> 0 | L18: =IF(ISERROR('4. Billing Det. for Def-Var'!T18/D18), 0, IF(OR(ISBLANK(D$13), OR(D$13=0, D$13="")), ('4. Billing Det. for Def-Var'!T18/D18)/(D$12/12), ('4. Billing Det. for Def-Var'!T18/D18)/(D$13/12))) -> 0.0005503628371 | M18: =J18*D18 -> -323290.913 | N18: 0
B19: ='4. Billing Det. for Def-Var'!B19 -> GENERAL SERVICE 50 TO 4,999 KW | C19: ='4. Billing Det. for Def-Var'!C19 -> kW | D19: ='4. Billing Det. for Def-Var'!D19 -> 1811883809 | E19: ='4. Billing Det. for Def-Var'!E19 -> 4895437.151 | F19: ='4. Billing Det. for Def-Var'!J19 -> 1800312216 | G19: ='4. Billing Det. for Def-Var'!K19 -> 4875557.656 | H19: =SUM('5. Allocating Def-Var Balances'!G18:V18)-I19 -> 526450.8872 | I19: ='5. Allocating Def-Var Balances'!I18+'5. Allocating Def-Var Balances'!N18 -> -1495394.972 | J19: =IF(ISERROR(H19/E19),0,IF(OR(ISBLANK(D$13), OR(D$13=0, D$13="")), H19/E19/(D$12/12), H19/E19/(D$13/12))) -> 0.1075390963 | K19: =IF(ISERROR(I19/G19),0,IF(OR(ISBLANK(D13), OR(D13=0, D13="")), I19/G19/(D12/12), I19/G19/(D$13/12))) -> -0.3067126014 | L19: =IF(ISERROR('4. Billing Det. for Def-Var'!T19/E19), 0, IF(OR(ISBLANK(D13), OR(D13=0, D13="")), ('4. Billing Det. for Def-Var'!T19/E19)/(D12/12), ('4. Billing Det. for Def-Var'!T19/E19)/(D13/12))) -> 0.05448643585 | M19: =J19*E19 -> 526450.8872 | N19: -1495394.972
B20: ='4. Billing Det. for Def-Var'!B20 -> LARGE USE (1) | C20: ='4. Billing Det. for Def-Var'!C20 -> kW | D20: ='4. Billing Det. for Def-Var'!D20 -> 248933055.6 | E20: ='4. Billing Det. for Def-Var'!E20 -> 512415.67 | F20: ='4. Billing Det. for Def-Var'!J20 -> 213955306 | G20: ='4. Billing Det. for Def-Var'!K20 -> 391406.8939 | H20: =SUM('5. Allocating Def-Var Balances'!G19:V19)-I20 -> 72328.60482 | I20: ='5. Allocating Def-Var Balances'!I19+'5. Allocating Def-Var Balances'!N19 -> -177717.8903 | J20: =IF(ISERROR(H20/E20),0,IF(OR(ISBLANK(D$13), OR(D$13=0, D$13="")), H20/E20/(D$12/12), H20/E20/(D$13/12))) -> 0.1411522111 | K20: =IF(ISERROR(I20/G20),0,IF(OR(ISBLANK(D14), OR(D14=0, D14="")), I20/G20/(D13/12), I20/G20/(D$13/12))) -> -0.4540489528 | L20: =IF(ISERROR('4. Billing Det. for Def-Var'!T20/E20), 0, IF(OR(ISBLANK(D13), OR(D13=0, D13="")), ('4. Billing Det. for Def-Var'!T20/E20)/(D12/12), ('4. Billing Det. for Def-Var'!T20/E20)/(D13/12))) -> 0.2968723232 | M20: =J20*E20 -> 72328.60482 | N20: -177717.8903
B21: ='4. Billing Det. for Def-Var'!B21 -> LARGE USE (2) | C21: ='4. Billing Det. for Def-Var'!C21 -> kW | D21: ='4. Billing Det. for Def-Var'!D21 -> 1065021673 | E21: ='4. Billing Det. for Def-Var'!E21 -> 1901226.94 | F21: ='4. Billing Det. for Def-Var'!J21 -> 350315954.6 | G21: ='4. Billing Det. for Def-Var'!K21 -> 778455.1512 | H21: =SUM('5. Allocating Def-Var Balances'!G20:V20)-I21 -> 309446.7769 | I21: ='5. Allocating Def-Var Balances'!I20+'5. Allocating Def-Var Balances'!N20 -> -290983.2598 | J21: =IF(ISERROR(H21/E21),0,IF(OR(ISBLANK(D$13), OR(D$13=0, D$13="")), H21/E21/(D$12/12), H21/E21/(D$13/12))) -> 0.1627616201 | K21: =IF(ISERROR(I21/G21),0,IF(OR(ISBLANK(D15), OR(D15=0, D15="")), I21/G21/(D14/12), I21/G21/(D$13/12))) -> -0.373795792 | L21: =IF(ISERROR('4. Billing Det. for Def-Var'!T21/E21), 0, IF(OR(ISBLANK(D14), OR(D14=0, D14="")), ('4. Billing Det. for Def-Var'!T21/E21)/(D13/12), ('4. Billing Det. for Def-Var'!T21/E21)/(D14/12))) -> 0.004874871194 | M21: =J21*E21 -> 309446.7769 | N21: -290983.2598
B22: ='4. Billing Det. for Def-Var'!B22 -> UNMETERED SCATTERED LOAD | C22: ='4. Billing Det. for Def-Var'!C22 -> kWh | D22: ='4. Billing Det. for Def-Var'!D22 -> 11571071.96 | E22: ='4. Billing Det. for Def-Var'!E22 -> 0 | F22: ='4. Billing Det. for Def-Var'!J22 -> 11571071.96 | G22: ='4. Billing Det. for Def-Var'!K22 -> 0 | H22: =SUM('5. Allocating Def-Var Balances'!G21:V21)-I22 -> -6249.263672 | J22: =IF(ISERROR(H22/D22),0,IF(OR(ISBLANK(D18), OR(D18=0, D18="")), H22/D22/(D17/12), H22/D22/(D$13/12))) -> -0.0005400764679 | K22: =IF(ISERROR(I22/F22),0,IF(OR(ISBLANK(D18), OR(D18=0, D18="")), I22/F22/(D17/12), I22/F22/(D18/12))) -> 0 | L22: =IF(ISERROR('4. Billing Det. for Def-Var'!T22/E22), 0, IF(OR(ISBLANK(D13), OR(D13=0, D13="")), ('4. Billing Det. for Def-Var'!T22/E22)/(D12/12), ('4. Billing Det. for Def-Var'!T22/E22)/(D13/12))) -> 0 | M22: =J22*D22 -> -6249.263672 | N22: 0
B23: ='4. Billing Det. for Def-Var'!B23 -> SENTINEL LIGHTING | C23: ='4. Billing Det. for Def-Var'!C23 -> kW | D23: ='4. Billing Det. for Def-Var'!D23 -> 438984.6484 | E23: ='4. Billing Det. for Def-Var'!E23 -> 1213.423076 | F23: ='4. Billing Det. for Def-Var'!J23 -> 438984.6484 | G23: ='4. Billing Det. for Def-Var'!K23 -> 1213.423076 | H23: =SUM('5. Allocating Def-Var Balances'!G22:V22)-I23 -> -237.0852784 | J23: =IF(ISERROR(H23/E23),0,IF(OR(ISBLANK(D$13), OR(D$13=0, D$13="")), H23/E23/(D$12/12), H23/E23/(D$13/12))) -> -0.1953855033 | K23: =IF(ISERROR(I23/G23),0,IF(OR(ISBLANK(D17), OR(D17=0, D17="")), I23/G23/(D16/12), I23/G23/(D17/12))) -> 0 | L23: =IF(ISERROR('4. Billing Det. for Def-Var'!T23/E23), 0, IF(OR(ISBLANK(D13), OR(D13=0, D13="")), ('4. Billing Det. for Def-Var'!T23/E23)/(D12/12), ('4. Billing Det. for Def-Var'!T23/E23)/(D13/12))) -> 0 | M23: =J23*E23 -> -237.0852784 | N23: 0
B24: ='4. Billing Det. for Def-Var'!B24 -> STREET LIGHTING | C24: ='4. Billing Det. for Def-Var'!C24 -> kW | D24: ='4. Billing Det. for Def-Var'!D24 -> 31864627.86 | E24: ='4. Billing Det. for Def-Var'!E24 -> 88666.23 | F24: ='4. Billing Det. for Def-Var'!J24 -> 31864627.86 | G24: ='4. Billing Det. for Def-Var'!K24 -> 88666.23 | H24: =SUM('5. Allocating Def-Var Balances'!G23:V23)-I24 -> -17209.33567 | J24: =IF(ISERROR(H24/E24),0,IF(OR(ISBLANK(D$13), OR(D$13=0, D$13="")), H24/E24/(D$12/12), H24/E24/(D$13/12))) -> -0.1940912077 | K24: =IF(ISERROR(I24/G24),0,IF(OR(ISBLANK(D18), OR(D18=0, D18="")), I24/G24/(D17/12), I24/G24/(D18/12))) -> 0 | L24: =IF(ISERROR('4. Billing Det. for Def-Var'!T24/E24), 0, IF(OR(ISBLANK(D13), OR(D13=0, D13="")), ('4. Billing Det. for Def-Var'!T24/E24)/(D12/12), ('4. Billing Det. for Def-Var'!T24/E24)/(D13/12))) -> 0.9758375863 | M24: =J24*E24 -> -17209.33567 | N24: 0
B25: ='4. Billing Det. for Def-Var'!B25 -> 0
M27: =SUM(M17:M26) -> -350885.4083 | N27: =SUM(N17:N26) -> -1964096.122 | O27: =SUM(M27:N27) -> -2314981.53
O28: =O27-('3. Continuity Schedule'!CD40-'3. Continuity Schedule'!CD25)-'4. Billing Det. for Def-Var'!D34 -> 0.0124096889
B30: 1 When calculating the revenue reconciliation for distributors with Class A customers, the balances of sub-account 1580-CBR Class A and B will not be taken into consideration since the rate riders, if any, are calculated outside of the model.
B31: 2 Only for rate classes with WMP customers are the Deferral/Variance Account Rate Riders for Non-WMP (column H and J) calculated separately. For all rate classes without WMP customers, balances in account 1580 and 1588 are included in column H and disposed through a combined Deferral/Variance Account and Rate Rider.
